{"text_format":"1","workbook":"xlsx","n_sheets":4,"sheets":["GESTION","QUESTIONS","RAPPORT","CENTILE"],"not_rendered":{"charts":1,"images":2,"macros":1,"external_links":0,"defined_names":2,"comments":0,"pivot_tables":0},"unopened":[],"bounds":{"document_bytes":16777216,"sheet_cells":100000,"rows_first":2000,"rows_last":500,"rows_between":2000,"halvings":0,"cell_chars":16384,"cell_head_chars":4096},"cells_cut":0,"cells_raw":0,"read":"whole","date_system":"1900"}

{"sheet":"GESTION","index":0,"n_rows":90,"n_cols":33,"rows_kept":90,"cut":false,"hidden":false,"merged":[[54,13,54,20],[46,13,46,14],[46,16,46,20],[47,13,47,14],[47,16,47,20],[48,13,48,14],[48,16,48,20],[49,13,49,14],[49,16,49,20],[50,13,50,14],[50,16,50,20],[52,13,52,20],[45,13,45,14],[45,16,45,20],[37,13,37,14],[37,16,37,20],[38,13,38,14],[38,16,38,20],[39,13,39,14],[39,16,39,20],[40,13,40,14],[40,16,40,20],[42,13,42,20],[44,13,44,14],[44,16,44,20],[34,13,34,14],[34,16,34,20],[35,13,35,14],[35,16,35,20],[36,13,36,14],[36,16,36,20],[33,13,33,14],[33,16,33,20],[22,13,22,14],[22,17,22,20],[23,13,23,20],[25,13,25,20],[27,13,27,14],[27,15,27,20],[28,13,28,14],[28,15,28,20],[30,13,30,20],[32,13,32,14],[32,16,32,20],[19,13,19,14],[19,15,19,20],[20,13,20,14],[20,15,20,20],[21,13,21,14],[21,15,21,20],[18,13,18,14],[18,17,18,19],[14,13,14,20],[16,13,16,14],[16,17,16,20],[17,13,17,14],[17,15,17,20]]}
["QID","MEQ","Instructions pour les impressions",null,null,"pdf","xlms","Data ","ReferenceVBA","Copie",null,null,null,null,null,null,null,null,null,null,null,null,null,null,null,null,"Special","Ascii","NoAudit","MRC","Lieu","Prénom","Nom"]
["QIDCDPQO",1,"QUESTIONS","$M$22:$V$89","Q","OUI","NON",{"$f":"P28","v":"20190524-NIL0-AucunLieuXXXXXXXXXXX"},1,0,null,null,null,null,null,null,null,null,null,null,null,null,null,null,null,null,"Apostrophe",null,{"$f":"LEFT(SUBSTITUTE(J21,\"'\",$AB2),8)","v":"0"},{"$f":"LEFT(SUBSTITUTE(J23,\"'\",$AB2),16)","v":"AucuneMRC"},{"$f":"LEFT(SUBSTITUTE(J26,\"'\",$AB2),25)","v":"AucunLieu"},{"$f":"I17","v":"Zenoma"},{"$f":"J17","v":"Tesselata"}]
["QIDCDPQF",1,null,null,null,null,null,{"$f":"P29","v":"20190524-0-AucuneMRC"},1,0,null,null,null,null,null,null,null,null,null,null,null,null,null,null,null,null,"á","a",{"$f":"SUBSTITUTE(AC2,$AA3,$AB3)","v":"0"},"AucuneMRC","AucunLieu","Zenoma","Tesselata"]
["IdAudit",1,null,null,null,null,null,{"$f":"LEFT(UPPER(CONCATENATE(LEFT(AF89,4),LEFT(AG89,4),\"XXXX\")),8)","v":"ZENOTESS"},13,13,null,null,null,null,null,null,null,null,null,null,null,null,null,null,null,null,"Á","A","0","AucuneMRC","AucunLieu","Zenoma","Tesselata"]
["PrenomAudit",1,null,null,null,null,null,{"$f":"I17","v":"Zenoma"},{"$f":"ROW(I14)","v":14},{"$f":"ROW(J14)","v":14},null,null,null,null,null,null,null,null,null,null,null,null,null,null,null,null,"â","a","0","AucuneMRC","AucunLieu","Zenoma","Tesselata"]
["NomAudit",1,null,null,null,null,null,{"$f":"J17","v":"Tesselata"},56,56,null,null,null,null,null,null,null,null,null,null,null,null,null,null,null,null,"Â","A","0","AucuneMRC","AucunLieu","Zenoma","Tesselata"]
["CourrielAudit",1,null,null,null,null,null,{"$f":"IF(P18=\"\",\"Audit@pascourriel\",P18)","v":"zenona@gmail.ca"},{"$f":"ROW(I92)","v":92},{"$f":"ROW(J92)","v":92},null,null,null,null,null,null,null,null,null,null,null,null,null,null,null,null,"à","a","0","AucuneMRC","AucunLieu","Zenoma","Tesselata"]
["CourrielClient",1,null,null,null,null,null,{"$f":"IF(K19=TRUE,P20,\"Aucun\")","v":0},1,1,null,null,null,null,null,null,null,null,null,null,null,null,null,null,null,null,"À","A","0","AucuneMRC","AucunLieu","Zenoma","Tesselata"]
["EnvoiAudit",1,null,null,null,null,null,{"$f":"J19","v":true},"$W:$AK","$W:$AK",null,null,null,null,null,null,null,null,null,null,null,null,null,null,null,null,"å","a","0","AucuneMRC","AucunLieu","Zenoma","Tesselata"]
["EnvoiClient",1,null,null,null,null,null,{"$f":"K19","v":true},{"$f":"CONCATENATE(\"$M$\",I5,\":$V$\",I6)","v":"$M$14:$V$56"},{"$f":"CONCATENATE(\"$M$\",J5,\":$V$\",J6)","v":"$M$14:$V$56"},null,null,null,null,null,null,null,null,null,null,null,null,null,null,null,null,"Å","A","0","AucuneMRC","AucunLieu","Zenoma","Tesselata"]
["NmQuestAudit",1,null,null,null,null,null,{"$f":"P21","v":0},{"$f":"I43","v":0.44444444444444442},{"$f":"J43","v":9},null,null,null,null,null,null,null,null,null,null,null,null,null,null,null,null,"ã","a","0","AucuneMRC","AucunLieu","Zenoma","Tesselata"]
["CodeValida",1,null,null,null,null,null,{"$f":"P22","v":0},{"$f":"IF(Q51-INT(Q51)=0,Q51,0)","v":0},{"$f":"IF(R51=1,1,IF(R51=2,2,IF(R51>14,R51,0)))","v":0},null,null,null,null,null,null,null,null,null,null,null,null,null,null,null,null,"Ã","A","0","AucuneMRC","AucunLieu","Zenoma","Tesselata"]
["MRC",1,null,null,null,null,null,{"$f":"J23","v":"AucuneMRC"},"M14:M15","M14:V16,M17:O23,M24:V50,M51:P51,M52:V90",null,null,null,null,null,null,null,null,null,null,null,null,null,null,null,null,"ä","a","0","AucuneMRC","AucunLieu","Zenoma","Tesselata"]
["GEST13",1,null,null,null,null,null,null,{"$f":"ROW(H45)","v":45},{"$f":"ROW(I45)","v":45},null,null,null,null,null,null,null,null,null,null,null,null,null,null,null,null,"Ä","A",{"$f":"SUBSTITUTE(AC13,$AA14,$AB14)","v":"0"},{"$f":"SUBSTITUTE(AD13,$AA14,$AB14)","v":"AucuneMRC"},{"$f":"SUBSTITUTE(AE13,$AA14,$AB14)","v":"AucunLieu"},{"$f":"SUBSTITUTE(AF13,$AA14,$AB14)","v":"Zenoma"},{"$f":"SUBSTITUTE(AG13,$AA14,$AB14)","v":"Tesselata"}]
["GEST14",21,null,null,null,null,null,null,1,1,null,null,null,{"$f":"CONCATENATE(\"A) Section à compléter par l'auditeur (code \",H4,\")\",)","v":"A) Section à compléter par l'auditeur (code ZENOTESS)"},null,null,null,null,null,null,null,null,null,null,null,null,"æ","ae","0","AucuneMRC","AucunLieu","Zenoma","Tesselata"]
["GEST15",14,null,null,null,null,null,null,null,null,null,null,null,null,null,null,null,null,null,null,null,null,null,null,null,null,"Æ","AE","0","AucuneMRC","AucunLieu","Zenoma","Tesselata"]
["GEST16",50,null,null,null,null,null,null,{"$f":"IF(P17=\"\",\"Prénom\",P17)","v":"Zenoma"},{"$f":"IF(R17=\"\",\"Nom\",R17)","v":"Tesselata"},null,null,null,"&1- Nom de l'auditeur",null,"Zenoma",null,"Tesselata",null,null,null,null,null,null,null,null,"ç","c","0","AucuneMRC","AucunLieu","Zenoma","Tesselata"]
["GEST17",48,null,null,null,null,null,null,null,null,null,null,null,"&2- Adresse courriel de l'auditeur",null,"zenona@gmail.ca",null,null,null,null,null,null,null,null,null,null,"Ç","C","0","AucuneMRC","AucunLieu","Zenoma","Tesselata"]
["GEST18",49,null,null,null,null,null,null,null,true,true,null,null,"&3- Le CDPQ enverra le rapport d'étalonnage à :",null,"Auditeur",null,"Transporteur",null,null,null,null,null,null,null,null,"é","e",{"$f":"SUBSTITUTE(AC18,$AA19,$AB19)","v":"0"},"AucuneMRC","AucunLieu","Zenoma","Tesselata"]
["GEST19",48,null,null,null,null,null,null,null,null,{"$f":"IF(P20=\"\",\"Aucun\",P20)","v":"Aucun"},null,null,"&4- Adresse courriel du transporteur",null,null,null,null,null,null,null,null,null,null,null,null,"É","E","0","AucuneMRC","AucunLieu","Zenoma","Tesselata"]
["GEST20",48,null,null,null,null,null,null,{"$f":"AC89","v":"0"},{"$f":"P21","v":0},null,null,null,"&5- No de dossier de l'auditeur*",null,null,null,null,null,null,null,null,null,null,null,null,"ê","e","0","AucuneMRC","AucunLieu","Zenoma","Tesselata"]
["GEST21",48,null,null,null,null,1,null,null,null,null,null,null,"&6- Code de validation (App. Cellulaire)",null,null,null,null,null,null,null,null,null,null,null,null,"Ê","E","0","AucuneMRC","AucunLieu","Zenoma","Tesselata"]
["GEST22",50,null,null,null,null,1,null,{"$f":"AD89","v":"AucuneMRC"},{"$f":"IF(R23=\"\",\"AucuneMRC\",R23)","v":"AucuneMRC"},null,null,null,"&7- Région administrative et MRC  ",null,"Region Administrative",null,null,null,null,null,"",null,null,null,null,"è","e","0","AucuneMRC","AucunLieu","Zenoma","Tesselata"]
["GEST23",40,null,null,null,null,null,null,null,null,null,null,null,"* Ce numéro permet de personaliser le dossier et il ne peut pas dépasser 8 caractères.",null,null,null,null,null,null,null,null,null,null,null,null,"È","E","0","AucuneMRC","AucunLieu","Zenoma","Tesselata"]
["GEST24",14,null,null,null,null,null,null,null,null,null,null,null,null,null,null,null,null,null,null,null,null,null,null,null,null,"ë","e","0","AucuneMRC","AucunLieu","Zenoma","Tesselata"]
["GEST25",21,null,null,null,null,null,null,{"$f":"LEFT(CONCATENATE(AE89,\"XXXXXXXXXXXXXXXXXXXXXX\"),20)","v":"AucunLieuXXXXXXXXXXX"},{"$f":"IF(QUESTIONS!O23=\"\",\"AucunLieu\",QUESTIONS!O23)","v":"AucunLieu"},null,null,null,"B) Identification du document pour les répertoires «Sauvegarde» et Impression",null,null,null,null,null,null,null,null,null,null,null,null,"Ë","E","0","AucuneMRC","AucunLieu","Zenoma","Tesselata"]
["GEST26",14,null,null,null,null,null,null,null,null,null,null,null,null,null,null,null,null,null,null,null,null,null,null,null,null,"í","i","0","AucuneMRC","AucunLieu","Zenoma","Tesselata"]
["GEST27",19,null,null,null,null,null,{"$f":"P28","v":"20190524-NIL0-AucunLieuXXXXXXXXXXX"},null,{"$f":"LEN(H28)","v":34},null,null,null,"Identifiants CDPQ",null,{"$f":"CONCATENATE(YEAR(QUESTIONS!H25),TEXT(MONTH(QUESTIONS!H25), \"00\"),TEXT(DAY(QUESTIONS!H25), \"00\"),\"-NIL\",QUESTIONS!H29,\"-\",I26)","v":"20190524-NIL0-AucunLieuXXXXXXXXXXX"},null,null,null,null,null,null,null,null,null,null,"Í","I","0","AucuneMRC","AucunLieu","Zenoma","Tesselata"]
["GEST28",19,null,null,null,null,1,{"$f":"P29","v":"20190524-0-AucuneMRC"},null,{"$f":"LEN(H29)","v":20},null,null,null,"Identifiants CDPQ (données fermées)",null,{"$f":"CONCATENATE(YEAR(QUESTIONS!H25),TEXT(MONTH(QUESTIONS!H25), \"00\"),TEXT(DAY(QUESTIONS!H25), \"00\"),\"-\",I21,\"-\",I23)","v":"20190524-0-AucuneMRC"},null,null,null,null,null,null,null,null,null,null,"î","i","0","AucuneMRC","AucunLieu","Zenoma","Tesselata"]
["GEST29",14,null,null,null,null,null,0,null,null,null,null,null,null,null,null,null,null,null,null,null,null,null,null,null,null,"Î","I","0","AucuneMRC","AucunLieu","Zenoma","Tesselata"]
["GEST30",21,null,null,null,null,null,0,null,null,null,null,null,"C) Liste des éléments qui doivent être saisis avant l'envoi ",null,null,null,null,null,null,null,null,null,null,null,null,"ì","i","0","AucuneMRC","AucunLieu","Zenoma","Tesselata"]
["GEST31",14,null,null,null,null,null,0,null,null,null,null,null,null,null,null,null,null,null,null,null,null,null,null,null,null,"Ì","I","0","AucuneMRC","AucunLieu","Zenoma","Tesselata"]
["GEST32",55,null,null,null,null,null,0,{"$f":"IF(P33=\"Complet\",1,0)","v":0},null,null,null,null,"Le questionnaire",null,{"$f":"IF(QUESTIONS!L27<>1,\"Incomplet\",\"Complet\")","v":"Incomplet"},{"$f":"QUESTIONS!R23","v":"Q =  0/45  (0%)"},null,null,null,null,null,null,null,null,null,"ï","i","0","AucuneMRC","AucunLieu","Zenoma","Tesselata"]
["GEST33",55,null,null,null,null,null,null,0,null,null,null,null,"Type d'entreprise (TR,SL,PR)",null,{"$f":"IF(QUESTIONS!R29=\"\",\"Incomplet\",\"Complet\")","v":"Incomplet"},{"$f":"IF(QUESTIONS!R29=\"\",\"Aucun\",QUESTIONS!R29)","v":"Aucun"},null,null,null,null,null,null,null,null,null,"Ï","I","0","AucuneMRC","AucunLieu","Zenoma","Tesselata"]
["GEST34",55,null,null,null,null,1,null,1,null,null,null,null,"La case \"Continu\" ou \"TPTV\"",null,{"$f":"IF(QUESTIONS!H22=0,\"Complet\",\"Complet\")","v":"Complet"},{"$f":"IF(QUESTIONS!H22=0,\"NON-SÉLECTIONNÉ\",IF(QUESTIONS!H22=1,\"CONTINU\",\"TOUT -PLEIN-TOUT-VIDE\"))","v":"NON-SÉLECTIONNÉ"},null,null,null,null,null,null,null,null,null,"ñ","n",{"$f":"SUBSTITUTE(AC34,$AA35,$AB35)","v":"0"},"AucuneMRC","AucunLieu","Zenoma","Tesselata"]
["GEST35",55,null,null,null,null,null,null,{"$f":"IF(P36=\"Complet\",1,0)","v":0},{"$f":"IF(CONCATENATE(QUESTIONS!O27,QUESTIONS!O29)=\"\",0,CONCATENATE(QUESTIONS!O27,QUESTIONS!O29))","v":0},null,null,null,"NIL ou adresse ",null,{"$f":"IF(J36=0,\"Incomplet\",\"Complet\")","v":"Incomplet"},{"$f":"IF(J36=0,\"NIL ou Adresse\",J36)","v":"NIL ou Adresse"},null,null,null,null,null,null,null,null,null,"Ñ","N",{"$f":"SUBSTITUTE(AC35,$AA36,$AB36)","v":"0"},{"$f":"SUBSTITUTE(AD35,$AA36,$AB36)","v":"AucuneMRC"},{"$f":"SUBSTITUTE(AE35,$AA36,$AB36)","v":"AucunLieu"},{"$f":"SUBSTITUTE(AF35,$AA36,$AB36)","v":"Zenoma"},{"$f":"SUBSTITUTE(AG35,$AA36,$AB36)","v":"Tesselata"}]
["GEST36",55,null,null,null,null,null,null,{"$f":"IF(P37=\"Complet\",1,0)","v":1},null,null,null,null,"La date de l'audit (QUESTIONS)",null,{"$f":"IF(QUESTIONS!O25=\"\",\"Incomplet\",IF(ISTEXT(QUESTIONS!O25),\"Incomplet\",\"Complet\"))","v":"Complet"},{"$f":"QUESTIONS!O25","v":"2019-05-24"},null,null,null,null,null,null,null,null,null,"ó","o","0","AucuneMRC","AucunLieu","Zenoma","Tesselata"]
["GEST37",55,null,null,null,null,null,null,1,null,null,null,null,"Le nom de l'auditeur (&1)",null,{"$f":"IF(H4=\"PRENNOMX\",\"Incomplet\",\"Complet\")","v":"Complet"},{"$f":"H4","v":"ZENOTESS"},null,null,null,null,null,null,null,null,null,"Ó","O","0","AucuneMRC","AucunLieu","Zenoma","Tesselata"]
["GEST38",55,null,null,null,null,null,null,1,null,null,null,null,"Le courriel de l'auditeur (&2)",null,{"$f":"IF(P18=\"\",\"Incomplet\",\"Complet\")","v":"Complet"},{"$f":"IF(P18=\"\",\"Étape &2\",P18)","v":"zenona@gmail.ca"},null,null,null,null,null,null,null,null,null,"ô","o","0","AucuneMRC","AucunLieu","Zenoma","Tesselata"]
["GEST39",55,null,null,null,null,null,null,{"$f":"IF(P40=\"Complet\",1,0)","v":0},null,null,null,null,"Le courriel du transporteur (&4)",null,{"$f":"IF(AND(K19=TRUE,P20=\"\"),\"Incomplet\",\"Complet\")","v":"Incomplet"},{"$f":"IF(K19=FALSE,\"Pas obligatoire\",K20)","v":"Aucun"},null,null,null,null,null,null,null,null,null,"Ô","O","0","AucuneMRC","AucunLieu","Zenoma","Tesselata"]
["GEST40",57,null,null,null,null,null,null,0,null,null,null,null,"No du dossier de l'auditeur (&5)",null,{"$f":"IF(P21=\"\",\"Incomplet\",\"Complet\")","v":"Incomplet"},{"$f":"IF(P21=\"\",\"Étape &5\",P21)","v":"Étape &5"},null,null,null,null,null,null,null,null,null,"ò","o","0","AucuneMRC","AucunLieu","Zenoma","Tesselata"]
["GEST41",14,null,null,null,null,null,null,null,null,null,null,null,null,null,null,null,null,null,null,null,null,null,null,null,null,"Ò","O","0","AucuneMRC","AucunLieu","Zenoma","Tesselata"]
["GEST42",21,null,null,null,null,null,null,{"$f":"SUM(I33:I41)/J43","v":0.44444444444444442},9,null,null,null,"D) Section des MACRO pour imprimer, sauvegarder et envoyer ",null,null,null,null,null,null,null,null,null,null,null,null,"ø","o","0","AucuneMRC","AucunLieu","Zenoma","Tesselata"]
["GEST43",14,null,null,null,null,null,null,null,null,null,null,null,null,null,null,null,null,null,null,null,null,null,null,null,null,"Ø","O","0","AucuneMRC","AucunLieu","Zenoma","Tesselata"]
["GEST44",55,null,null,null,null,null,null,null,null,null,null,null,"Créer le rapport",null,null,null,null,null,null,null,null,null,null,null,null,"õ","o","0","AucuneMRC","AucunLieu","Zenoma","Tesselata"]
["GEST45",55,null,null,null,null,null,null,null,null,null,null,null,"Imprimer le questionnaire (pdf)",null,null,null,null,null,null,null,null,null,null,null,null,"Õ","O","0","AucuneMRC","AucunLieu","Zenoma","Tesselata"]
["GEST46",55,null,null,null,null,null,null,null,null,null,null,null,"Imprimer le rapport (pdf)",null,null,null,null,null,null,null,null,null,null,null,null,"ö","o","0","AucuneMRC","AucunLieu","Zenoma","Tesselata"]
["GEST47",55,null,null,null,null,null,null,null,null,null,null,null,"Imprimer le questionnaire et les directives (pdf)",null,null,null,null,null,null,null,null,null,null,null,null,"Ö","O","0","AucuneMRC","AucunLieu","Zenoma","Tesselata"]
["GEST48",55,null,null,null,null,null,null,null,null,null,null,null,"Imprimer les directives (pdf)",null,null,null,null,null,null,null,null,null,null,null,null,"œ","oe","0","AucuneMRC","AucunLieu","Zenoma","Tesselata"]
["GEST49",55,null,null,null,null,null,null,null,null,null,null,null,"Envoyer le fichier au CDPQ",null,null,null,null,null,null,null,null,null,null,null,null,"Œ","OE","0","AucuneMRC","AucunLieu","Zenoma","Tesselata"]
["GEST50",55,null,null,null,null,null,null,null,null,null,null,null,"Créer un nouveau questionnaire",null,null,null,null,null,null,null,null,null,null,null,null,"š","s",{"$f":"SUBSTITUTE(AC50,$AA51,$AB51)","v":"0"},"AucuneMRC","AucunLieu","Zenoma","Tesselata"]
["GEST51",14,null,null,null,null,null,null,null,null,null,null,null,null,null,null,null,null,null,null,null,null,null,null,null,null,"Š","S","0","AucuneMRC","AucunLieu","Zenoma","Tesselata"]
["GEST52",21,"Attention, les colonnes  «AA  -AD\" contiennent le correcteur ASCII (89 lignes)",null,null,null,null,null,null,null,null,null,null,"E) Financement et reconnaissance ",null,null,null,null,null,null,null,null,null,null,null,null,"ß","b","0","AucuneMRC","AucunLieu","Zenoma","Tesselata"]
["GEST53",14,"Attention, les colonnes  «AA  -AD\" contiennent le correcteur ASCII (89 lignes)",null,null,null,null,null,null,null,null,null,null,null,null,null,null,null,null,null,null,null,null,null,null,null,"ð","d","0","AucuneMRC","AucunLieu","Zenoma","Tesselata"]
["GEST54",59,"Attention, les colonnes  «AA  -AD\" contiennent le correcteur ASCII (89 lignes)",null,null,null,null,null,null,null,null,null,null,"Cet audit en biosécurité dans le transport a été réalisé dans le cadre du projet « Initiation d'une approche sectorielle globale pour le contrôle du SRRP », financé par le ministère de l'Agriculture, des Pêcheries et de l'Alimentation du Québec (MAPAQ) et Les Éleveurs de Porc du Québec (EPQ). Ce projet est réalisé par l'équipe santé et biosécurité du Centre de développement du porc du Québec (CDPQ).",null,null,null,null,null,null,null,null,null,null,null,null,"Ð","D","0","AucuneMRC","AucunLieu","Zenoma","Tesselata"]
["GEST55",1,"Attention, les colonnes  «AA  -AD\" contiennent le correcteur ASCII (89 lignes)",null,null,null,null,null,null,null,null,null,null,null,null,null,null,null,null,null,null,null,null,null,null,null,"þ","p","0","AucuneMRC","AucunLieu","Zenoma","Tesselata"]
["GEST56",1,"Attention, les colonnes  «AA  -AD\" contiennent le correcteur ASCII (89 lignes)",null,null,null,null,null,null,null,null,null,null,null,null,null,null,null,null,null,null,null,null,null,null,null,"Þ","p","0","AucuneMRC","AucunLieu","Zenoma","Tesselata"]
["GEST57",1,"Attention, les colonnes  «AA  -AD\" contiennent le correcteur ASCII (89 lignes)",null,null,null,null,null,null,null,null,null,null,null,null,null,null,null,null,null,null,null,null,null,null,null,"ú","u","0","AucuneMRC","AucunLieu","Zenoma","Tesselata"]
["GEST58",1,"Attention, les colonnes  «AA  -AD\" contiennent le correcteur ASCII (89 lignes)",null,null,null,null,null,null,null,null,null,null,null,null,null,null,null,null,null,null,null,null,null,null,null,"Ú","U","0","AucuneMRC","AucunLieu","Zenoma","Tesselata"]
["GEST59",1,"Attention, les colonnes  «AA  -AD\" contiennent le correcteur ASCII (89 lignes)",null,null,null,null,null,null,null,null,null,null,null,null,null,null,null,null,null,null,null,null,null,null,null,"û","u","0","AucuneMRC","AucunLieu","Zenoma","Tesselata"]
["GEST60",1,"Attention, les colonnes  «AA  -AD\" contiennent le correcteur ASCII (89 lignes)",null,null,null,null,null,null,null,null,null,null,null,null,null,null,null,null,null,null,null,null,null,null,null,"Û","U","0","AucuneMRC","AucunLieu","Zenoma","Tesselata"]
["GEST61",1,"Attention, les colonnes  «AA  -AD\" contiennent le correcteur ASCII (89 lignes)",null,null,null,null,null,null,null,null,null,null,null,null,null,null,null,null,null,null,null,null,null,null,null,"ù","u","0","AucuneMRC","AucunLieu","Zenoma","Tesselata"]
["GEST62",1,"Attention, les colonnes  «AA  -AD\" contiennent le correcteur ASCII (89 lignes)",null,null,null,null,null,null,null,null,null,null,null,null,null,null,null,null,null,null,null,null,null,null,null,"Ù","U","0","AucuneMRC","AucunLieu","Zenoma","Tesselata"]
["GEST63",1,"Attention, les colonnes  «AA  -AD\" contiennent le correcteur ASCII (89 lignes)",null,null,null,null,null,null,null,null,null,null,null,null,null,null,null,null,null,null,null,null,null,null,null,"ü","u","0","AucuneMRC","AucunLieu","Zenoma","Tesselata"]
["GEST64",1,"Attention, les colonnes  «AA  -AD\" contiennent le correcteur ASCII (89 lignes)",null,null,null,null,null,null,null,null,null,null,null,null,null,null,null,null,null,null,null,null,null,null,null,"Ü","U","0","AucuneMRC","AucunLieu","Zenoma","Tesselata"]
["GEST65",1,"Attention, les colonnes  «AA  -AD\" contiennent le correcteur ASCII (89 lignes)",null,null,null,null,null,null,null,null,null,null,null,null,null,null,null,null,null,null,null,null,null,null,null,"ý","y","0","AucuneMRC","AucunLieu","Zenoma","Tesselata"]
["GEST66",1,"Attention, les colonnes  «AA  -AD\" contiennent le correcteur ASCII (89 lignes)",null,null,null,null,null,null,null,null,null,null,null,null,null,null,null,null,null,null,null,null,null,null,null,"Ý","Y",{"$f":"SUBSTITUTE(AC66,$AA67,$AB67)","v":"0"},"AucuneMRC","AucunLieu","Zenoma","Tesselata"]
["GEST67",1,"Attention, les colonnes  «AA  -AD\" contiennent le correcteur ASCII (89 lignes)",null,null,null,null,null,null,null,null,null,null,null,null,null,null,null,null,null,null,null,null,null,null,null,"ÿ","y","0","AucuneMRC","AucunLieu","Zenoma","Tesselata"]
["GEST68",1,"Attention, les colonnes  «AA  -AD\" contiennent le correcteur ASCII (89 lignes)",null,null,null,null,null,null,null,null,null,null,null,null,null,null,null,null,null,null,null,null,null,null,null,"ÿ","Y","0","AucuneMRC","AucunLieu","Zenoma","Tesselata"]
["GEST69",1,"Attention, les colonnes  «AA  -AD\" contiennent le correcteur ASCII (89 lignes)",null,null,null,null,null,null,null,null,null,null,null,null,null,null,null,null,null,null,null,null,null,null,null," ",null,"0","AucuneMRC","AucunLieu","Zenoma","Tesselata"]
["GEST70",1,"Attention, les colonnes  «AA  -AD\" contiennent le correcteur ASCII (89 lignes)",null,null,null,null,null,null,null,null,null,null,null,null,null,null,null,null,null,null,null,null,null,null,null,":",null,"0","AucuneMRC","AucunLieu","Zenoma","Tesselata"]
["GEST71",1,"Attention, les colonnes  «AA  -AD\" contiennent le correcteur ASCII (89 lignes)",null,null,null,null,null,null,null,null,null,null,null,null,null,null,null,null,null,null,null,null,null,null,null,";",null,"0","AucuneMRC","AucunLieu","Zenoma","Tesselata"]
["GEST72",1,"Attention, les colonnes  «AA  -AD\" contiennent le correcteur ASCII (89 lignes)",null,null,null,null,null,null,null,null,null,null,null,null,null,null,null,null,null,null,null,null,null,null,null,".",null,"0","AucuneMRC","AucunLieu","Zenoma","Tesselata"]
["GEST73",1,"Attention, les colonnes  «AA  -AD\" contiennent le correcteur ASCII (89 lignes)",null,null,null,null,null,null,null,null,null,null,null,null,null,null,null,null,null,null,null,null,null,null,null,",",null,"0","AucuneMRC","AucunLieu","Zenoma","Tesselata"]
["GEST74",1,"Attention, les colonnes  «AA  -AD\" contiennent le correcteur ASCII (89 lignes)",null,null,null,null,null,null,null,null,null,null,null,null,null,null,null,null,null,null,null,null,null,null,null,"|",null,"0","AucuneMRC","AucunLieu","Zenoma","Tesselata"]
["GEST75",1,"Attention, les colonnes  «AA  -AD\" contiennent le correcteur ASCII (89 lignes)",null,null,null,null,null,null,null,null,null,null,null,null,null,null,null,null,null,null,null,null,null,null,null,"!",null,"0","AucuneMRC","AucunLieu","Zenoma","Tesselata"]
["GEST76",1,"Attention, les colonnes  «AA  -AD\" contiennent le correcteur ASCII (89 lignes)",null,null,null,null,null,null,null,null,null,null,null,null,null,null,null,null,null,null,null,null,null,null,null,"\"",null,"0","AucuneMRC","AucunLieu","Zenoma","Tesselata"]
["GEST77",1,"Attention, les colonnes  «AA  -AD\" contiennent le correcteur ASCII (89 lignes)",null,null,null,null,null,null,null,null,null,null,null,null,null,null,null,null,null,null,null,null,null,null,null,"/",null,"0","AucuneMRC","AucunLieu","Zenoma","Tesselata"]
["GEST78",1,"Attention, les colonnes  «AA  -AD\" contiennent le correcteur ASCII (89 lignes)",null,null,null,null,null,null,null,null,null,null,null,null,null,null,null,null,null,null,null,null,null,null,null,"$",null,"0","AucuneMRC","AucunLieu","Zenoma","Tesselata"]
["GEST79",1,"Attention, les colonnes  «AA  -AD\" contiennent le correcteur ASCII (89 lignes)",null,null,null,null,null,null,null,null,null,null,null,null,null,null,null,null,null,null,null,null,null,null,null,"%",null,"0","AucuneMRC","AucunLieu","Zenoma","Tesselata"]
["GEST80",1,"Attention, les colonnes  «AA  -AD\" contiennent le correcteur ASCII (89 lignes)",null,null,null,null,null,null,null,null,null,null,null,null,null,null,null,null,null,null,null,null,null,null,null,"?",null,"0","AucuneMRC","AucunLieu","Zenoma","Tesselata"]
["GEST81",1,"Attention, les colonnes  «AA  -AD\" contiennent le correcteur ASCII (89 lignes)",null,null,null,null,null,null,null,null,null,null,null,null,null,null,null,null,null,null,null,null,null,null,null,"&",null,"0","AucuneMRC","AucunLieu","Zenoma","Tesselata"]
["GEST82",1,"Attention, les colonnes  «AA  -AD\" contiennent le correcteur ASCII (89 lignes)",null,null,null,null,null,null,null,null,null,null,null,null,null,null,null,null,null,null,null,null,null,null,null,"*",null,{"$f":"SUBSTITUTE(AC82,$AA83,$AB83)","v":"0"},"AucuneMRC","AucunLieu","Zenoma","Tesselata"]
["GEST83",1,"Attention, les colonnes  «AA  -AD\" contiennent le correcteur ASCII (89 lignes)",null,null,null,null,null,null,null,null,null,null,null,null,null,null,null,null,null,null,null,null,null,null,null,"(",null,"0","AucuneMRC","AucunLieu","Zenoma","Tesselata"]
["GEST84",1,"Attention, les colonnes  «AA  -AD\" contiennent le correcteur ASCII (89 lignes)",null,null,null,null,null,null,null,null,null,null,null,null,null,null,null,null,null,null,null,null,null,null,null,")",null,"0","AucuneMRC","AucunLieu","Zenoma","Tesselata"]
["GEST85",1,"Attention, les colonnes  «AA  -AD\" contiennent le correcteur ASCII (89 lignes)",null,null,null,null,null,null,null,null,null,null,null,null,null,null,null,null,null,null,null,null,null,null,null,"_",null,"0","AucuneMRC","AucunLieu","Zenoma","Tesselata"]
["GEST86",1,"Attention, les colonnes  «AA  -AD\" contiennent le correcteur ASCII (89 lignes)",null,null,null,null,null,null,null,null,null,null,null,null,null,null,null,null,null,null,null,null,null,null,null,"–",null,"0","AucuneMRC","AucunLieu","Zenoma","Tesselata"]
["GEST87",1,"Attention, les colonnes  «AA  -AD\" contiennent le correcteur ASCII (89 lignes)",null,null,null,null,null,null,null,null,null,null,null,null,null,null,null,null,null,null,null,null,null,null,null,"—",null,"0","AucuneMRC","AucunLieu","Zenoma","Tesselata"]
["GEST88",1,"Attention, les colonnes  «AA  -AD\" contiennent le correcteur ASCII (89 lignes)",null,null,null,null,null,null,null,null,null,null,null,null,null,null,null,null,null,null,null,null,null,null,null,"-",null,"0","AucuneMRC","AucunLieu","Zenoma","Tesselata"]
["GEST89",1,"Attention, les colonnes  «AA  -AD\" contiennent le correcteur ASCII (89 lignes)"]

{"sheet":"QUESTIONS","index":1,"n_rows":89,"n_cols":24,"rows_kept":89,"cut":false,"hidden":false,"merged":[[87,13,87,16],[88,13,88,16],[81,13,81,16],[82,13,82,16],[83,13,83,16],[84,13,84,16],[85,13,85,16],[86,13,86,16],[80,13,80,16],[69,13,69,16],[70,13,70,16],[71,13,71,16],[72,13,72,16],[73,13,73,16],[74,13,74,16],[75,13,75,16],[76,13,76,16],[77,13,77,16],[78,13,78,16],[79,13,79,16],[68,13,68,16],[57,13,57,16],[58,13,58,16],[59,13,59,16],[60,13,60,16],[61,13,61,16],[62,13,62,16],[63,13,63,16],[64,13,64,16],[65,13,65,16],[66,13,66,16],[67,13,67,16],[56,13,56,16],[45,13,45,16],[46,13,46,16],[47,13,47,16],[48,13,48,16],[49,13,49,16],[50,13,50,16],[51,13,51,16],[52,13,52,16],[53,13,53,16],[54,13,54,16],[55,13,55,16],[44,13,44,16],[33,17,33,20],[34,13,34,16],[35,13,35,16],[36,13,36,16],[37,13,37,16],[38,13,38,16],[39,13,39,16],[40,13,40,16],[41,13,41,16],[42,13,42,16],[43,13,43,16],[32,17,32,20],[25,14,25,15],[25,17,25,20],[26,14,26,15],[26,17,26,20],[27,14,27,15],[27,17,27,20],[28,14,28,15],[28,17,28,20],[29,17,29,20],[30,17,30,20],[31,17,31,20],[22,14,22,15],[22,17,22,20],[23,14,23,15],[23,17,23,20],[24,14,24,15],[24,17,24,20]]}
["NoQ","MEP","Definition",null,null,null,null,"Valeur","Code VBA","Copiecode"]
["NbQuInst",1,"Installations Nombre Question ",null,null,null,null,{"$f":"I24","v":15},0]
["PtQInstA",1,"Installations Pointage Questions",null,null,null,null,{"$f":"I25","v":0},0]
["PtQInstT",1,"Installations Pointage Total",null,null,null,null,{"$f":"I26","v":860},21]
["NbQuProc",1,"Procédures Nombre Question",null,null,null,null,{"$f":"J24","v":30},22]
["PtQProcA",1,"Procédures Pointage Questions",null,null,null,null,{"$f":"J25","v":0},89]
["PtQProcT",1,"Procédures Pointage Total",null,null,null,null,{"$f":"J26","v":1620},89]
["NbQuTout",1,"Total Nombre Question",null,null,null,null,{"$f":"K24","v":45},1]
["PtQToutA",1,"Total Pointage Questions",null,null,null,null,{"$f":"K25","v":0},"$Z:$Z"]
["PtQToutT",1,"Total Pointage Total",null,null,null,null,{"$f":"K26","v":2480},{"$f":"CONCATENATE(\"$M$\",I5,\":$V$\",I6)","v":"$M$22:$V$89"}]
["NbQuesSO",1,"Question Sans Objets (n)",null,null,null,null,{"$f":"L24","v":0},{"$f":"CONCATENATE(\"$M$\",I5,\":$Y$\",I6)","v":"$M$22:$Y$89"}]
["NbQRepon",1,"Questions répondues (n)",null,null,null,null,{"$f":"L25","v":0},{"$f":"CONCATENATE(\"$W$\",I5,\":$Y$\",I6)","v":"$W$22:$Y$89"}]
["NbQueTot",1,"Questions totales (n)",null,null,null,null,{"$f":"L26","v":45},"M22:M23","M22:V22,M23:N29,R23:V29,M30:V86,W22:Z86"]
["RotaCont",1,"Rotation vs. continu",null,null,null,null,null,{"$f":"ROW(I35)","v":35}]
["Type",1,"Type d'élevage ou entreprise",null,null,null,null,{"$f":"R29","v":""},{"$f":"COUNTIF(H:H,\"Titre\")","v":10}]
["IndicOR",1,"Proportion questions Or OK ",null,null,null,null,{"$f":"SUMIFS($F35:$F287,$H35:$H287,2)/F25","v":0}]
["QUEST17",1]
["QUEST18",1]
["QUEST19",1]
["QUEST20",1]
["QUEST21",1]
["CodCTPTV",1,null,null,null,null,1,0]
["IdLieuNM",16,null,null,null,null,1,{"$f":"IF(O23=\"\",\"INCONNU\",O23)","v":"INCONNU"},"I","P","T","QT",null,"Identification du lieu",null,null,null,{"$f":"CONCATENATE(\"Q =  \",L25,\"/\",L26,\"  (\",TEXT(L27,\"0%\"),\")\",)","v":"Q =  0/45  (0%)"}]
["NmReLieu",16,"QI","QP",null,"QO",1,{"$f":"IF(O24=\"\",\"INCONNU\",O24)","v":"INCONNU"},{"$f":"COUNTIFS($E35:$E287,\"I\",$K35:$K287,\">0\")","v":15},{"$f":"COUNTIFS($E35:$E287,\"P\",$K35:$K287,\">0\")","v":30},{"$f":"COUNTIFS($K35:$K287,\">0\")","v":45},{"$f":"COUNTIF(H35:H287,\"1\")","v":0},null,"Nom du responsable",null,null,null,{"$f":"CONCATENATE(\"QI =  \",C26,\";  QP = \",D26)","v":"QI =  15;  QP = 30"}]
["DateEval",18,{"$f":"COUNTIF(E35:E287,\"I\")","v":15},{"$f":"COUNTIF(E35:E287,\"P\")","v":30},null,{"$f":"COUNTIF(F35:F287,1)","v":8},1,{"$f":"O25","v":43609},{"$f":"SUM(I35:I287)","v":0},{"$f":"SUM(J35:J287)","v":0},{"$f":"J25+I25","v":0},{"$f":"COUNTIF(H35:H287,\">0\")","v":0},null,"Date de l'évaluation",{"$f":"TODAY()","v":"2019-05-24"},null,null,{"$f":"CONCATENATE(\"I =  \",I25,\"/\",I26,\"  (\",TEXT(I27,\"0%\"),\")\",)","v":"I =  0/860  (0%)"}]
["NmVeteri",16,{"$f":"C25-SUMIFS($H35:$H287,$E35:$E287,\"I\",$H35:$H287,1)","v":15},{"$f":"D25-SUMIFS($H35:$H287,$E35:$E287,\"P\",$H35:$H287,1)","v":30},null,{"$f":"F25-SUMIFS($H35:$H287,$F35:$F287,1,$H35:$H287,1)","v":8},1,{"$f":"IF(O26=\"\",\"Dr Inconnu\",O26)","v":"Dr Inconnu"},{"$f":"SUMIF($E35:$E287,\"I\",$K35:$K287)","v":860},{"$f":"SUMIF($E35:$E287,\"P\",$K35:$K287)","v":1620},{"$f":"I26+J26","v":2480},{"$f":"COUNTIF(C35:C287,\">0\")","v":45},null,"Nom du consultant",null,null,null,{"$f":"CONCATENATE(\"P =  \",J25,\"/\",J26,\"  (\",TEXT(J27,\"0%\"),\")\",)","v":"P =  0/1620  (0%)"}]
["AdreLieu",16,null,null,null,null,1,{"$f":"IF(O27=\"\",\"Adresse inconnue\",O27)","v":"Adresse inconnue"},{"$f":"IF(I26=0,0,I25/I26)","v":0},{"$f":"IF(J26=0,0,J25/J26)","v":0},{"$f":"IF(K26=0,0,K25/K26)","v":0},{"$f":"IF(L26=0,0,L25/L26)","v":0},null,"Adresse",null,null,null,{"$f":"CONCATENATE(\"Total =  \",K25,\"/\",K26,\"  (\",TEXT(K27,\"0%\"),\")\",)","v":"Total =  0/2480  (0%)"}]
["NomAudit",16,null,null,null,null,1,{"$f":"O28","v":"Zenoma Tesselata"},null,null,null,null,null,"Nom de l'auditeur",{"$f":"CONCATENATE(GESTION!P17,\" \",GESTION!R17)","v":"Zenoma Tesselata"},null,null,{"$f":"CONCATENATE(\"Pointage moyen (IP)  =  \",TEXT(AVERAGE(I27:J27),\"0%\"))","v":"Pointage moyen (IP)  =  0%"}]
["NIL",16,null,null,null,null,1,{"$f":"O29","v":0},null,null,null,null,null,"No du lieu (NIL)",null,null,null,{"$f":"CONCATENATE(IF(H30=TRUE,\"TR\",\"\"),IF(H31=TRUE,\"SL\",\"\"),IF(H32=TRUE,\"PR\",\"\"),IF(H33=TRUE,\"\",\"\"),IF(H30=1,\"TR\",\"\"),IF(H31=1,\"SL\",\"\"),IF(H32=1,\"PR\",\"\"),IF(H33=1,\"\",\"\"))","v":""}]
["CodeTR",22,null,null,null,null,null,false,null,null,null,null,null,"Transport (camions)",null,null,null,{"$f":"CONCATENATE(\"Q. OR conforme (\",TEXT(H16,\"0%\"),\")\")","v":"Q. OR conforme (0%)"}]
["CodeSL",23,null,null,null,null,null,false,null,null,null,null,null,"Salle de lavage",null,null,null,"non-conforme"]
["QUEST32",30,null,null,null,null,null,false,null,null,null,null,null,null,null,null,null,"partiellement conforme"]
["QUEST33",29,null,null,null,null,null,false,null,null,null,null,null,null,null,null,null,"conforme"]
["QUEST34",26,"PTMAX","PTINTER","I/P","OR"]
[1954,20,null,null,null,null,{"$f":"MAX(LEN(N35)/77,LEN(X35)/175)","v":0.29870129870129869},{"$f":"IF(B35=20,\"Titre\",IF(L35=1,1,0))","v":"Titre"},{"$f":"IF($E35=\"I\",IF($H35=2,$C35,IF($H35=3,$D35,IF(H35=4,1,0))),0)","v":0},{"$f":"IF($E35=\"P\",IF($H35=2,$C35,IF($H35=3,$D35,IF(H35=4,1,0))),0)","v":0},{"$f":"IF(H35=1,0,C35)","v":0},null,{"$f":"IF(F35=1,1,\"\")","v":""}," Personnel et formation",null,null,null,"S. o.","Oui","Part.","Non",null,null,"Personnel et formation"]
[11,5,50,{"$f":"C36/2","v":25},"P","",{"$f":"MAX(LEN(N36)/77,LEN(X36)/175)","v":2.9740259740259742},0,{"$f":"IF($E36=\"I\",IF($H36=2,$C36,IF($H36=3,$D36,IF(H36=4,1,0))),0)","v":0},{"$f":"IF($E36=\"P\",IF($H36=2,$C36,IF($H36=3,$D36,IF(H36=4,1,0))),0)","v":0},{"$f":"IF(H36=1,0,C36)","v":50},null,{"$f":"IF(F36=1,1,\"\")","v":""},"Q01.  Au moins une fois par année, des employés reçoivent une formation continue sur la biosécurité et le lavage des véhicules de transport, dispensée par une tierce partie indépendante ou par à une formation en ligne. (P-50 pts)",null,null,null,"","","","",null,null,"Q01.  Pour répondre « oui », au moins 50 % des employés qui lavent les remorques doivent avoir reçu une formation au cours des 12 derniers mois. Cette formation doit avoir été donnée par une tierce partie indépendante (autre que des employés travaillant à la station de lavage ou le propriétaire)."]
[462,4,10,{"$f":"C37/2","v":5},"P",null,2.1818181818181817,0,{"$f":"IF($E37=\"I\",IF($H37=2,$C37,IF($H37=3,$D37,IF(H37=4,1,0))),0)","v":0},{"$f":"IF($E37=\"P\",IF($H37=2,$C37,IF($H37=3,$D37,IF(H37=4,1,0))),0)","v":0},{"$f":"IF(H37=1,0,C37)","v":10},null,"","Q02.  L’accès aux bâtiments (garages et stations de lavage) est limité au personnel désigné et un avis à cet effet est affiché à l’entrée de chaque bâtiment. (P-10 pts)",null,null,null,"","","","",null,null,"Q02.  Pour répondre « oui », une affiche indiquant que l'accès est restreint doit être affichée à l'entrée de la station de lavage. Un système de barrure doit aussi être en place et fonctionnel."]
[592,4,100,50,"P",null,2.5974025974025974,0,0,0,100,null,"","Q03.  Après le chargement ou le déchargement des porcs, le personnel nettoie, désinfecte et sèche ses mains (produits à base d'alcool, lingettes, etc.) en entrant dans la cabine du camion. (P-100 pts)",null,null,null,"","","","",null,null,"Q03.  Pour répondre « oui », des lingettes désinfectantes ou un distributeur de désinfectant (type Purell) doivent être disponibles dans la cabine du camionneur."]
[1959,20,null,0,null,null,0.23376623376623376,"Titre",0,0,0,null,""," Site et bâtiments",null,null,null,"S. o.","Oui","Part.","Non",null,null,"Site et bâtiments"]
[441,4,100,50,"I","",1.025974025974026,0,0,0,100,null,"","Q04.  La station de lavage possède un système de lavage à pression. (I-100 pts)",null,null,null,"","","","",null,null,"Q04.  Pour répondre « oui », le système de lavage à pression doit être installé et fonctionnel."]
[814,4,100,50,"I","",2.6685714285714286,0,0,0,100,null,"","Q05.  La conception des installations et des équipements permet le séchage complet des véhicules entre chaque activité de transport durant toute l'année. (I-100 pts)",null,null,null,"","","","",null,null,"Q05.  Pour répondre « oui », il faut vérifier la faisabilité de sécher toutes les remorques de l'entreprise.  Si l'entreprise possède moins de trois remorques et a la possibilité de sécher toutes ses remorques à l'intérieur pendant un minimum de 8 heures, ce sera « oui »  Si l'entreprise doit envisager un séchage plus rapide  (ex. : 2 heures) elle devra nécessairement posséder des installations de séchage de type TADD ou Bio Dri pour être éligible à un « oui ».  "]
[812,4,50,25,"I","",2.3766233766233764,0,0,0,50,null,"","Q06.  La conception de la station de lavage permet aux véhicules lavés de traverser le bâtiment et ainsi prévenir la circulation sur les voies de passage des camions sales. (I-50 pts)",null,null,null,"","","","",null,null,"Q06.  Pour répondre « oui », la porte d'entrée de la station, destinée aux remorques, est différente de la porte de sortie (normalement de l'autre côté du bâtiment), évitant ainsi au véhicule de revenir sur ses pas."]
[806,4,100,50,"I","",1.8441558441558441,0,0,0,100,null,"","Q07.  La température ambiante de la station de lavage peut être maintenue au-dessus du point de congélation pendant toute l'année. (I-100 pts)",null,null,null,"","","","",null,null,"Q07.  Pour répondre « oui », le système de chauffage ambiant doit être fonctionnel."]
[447,4,20,10,"I","",1.7885714285714285,0,0,0,20,null,"","Q08.  Il y a présence d'équipement à air chaud pour accélérer le processus de séchage. (I-20 pts)",null,null,null,"","","","",null,null,"Q08.  Pour répondre « oui », une source de chaleur d'appoint pouvant être placée en arrière des remorques doit être présente dans la salle de séchage. Le système de chauffage ambiant (radiant, chaufferette avec ventilateur poussant la chaleur dans la salle, etc.) n'est pas considéré comme un chauffage d'appoint."]
[807,4,5,2.5,"I","",2,0,0,0,5,null,"","Q09.  Les équipements de la station de lavage peuvent réchauffer et sécher les remorques à des températures de 60 °C ou plus à longueur d'année. (I-5 pts)",null,null,null,"","","","",null,null,"Q09.  Pour répondre « oui », un système TADD ou Bio Dri doit être installé et fonctionnel à l'année, permettant de réchauffer les remorques à des températures de 60 °C et plus."]
[160,6,100,50,"I",1,2.4628571428571431,0,0,0,100,null,1,"Q10.  Le plancher, le plafond et les murs de la station de lavage sont fabriqués avec des matériaux lavables et non poreux (absence de bois). (I-100 pts)",null,null,null,null,"","","",null,null,"Q10.  Pour répondre « oui », il faut que le plancher (incluant les marches s'il y en a), le plafond et les murs soient construits avec des matériaux lavables (béton, aluminium, plastique, etc.). Ceci inclut les portes, les cadres de portes, les casiers, ou tout autre équipement présent dans la salle de lavage. Si un ou deux équipements (excluant l'infrastructure) ne sont pas facilement lavables, la réponse devient  « partiel »."]
[158,6,100,50,"I",1,1.2987012987012987,0,0,0,100,null,1,"Q11.  La station de lavage peut être complètement drainée après le lavage d'un véhicule. (I-100 pts)",null,null,null,"","","","",null,null,"Q11.  Pour répondre « oui », le plancher de la station de lavage doit se drainer naturellement (pente) immédiatement après le lavage d'un véhicule afin d'éviter l'accumulation de grandes flaques d'eau en certains endroits."]
[431,5,50,25,"I",null,1.8831168831168832,0,0,0,50,null,"","Q12.  Dans la station de lavage, il existe des divisions physiques, permanentes ou amovibles, pour séparer les véhicules de transport. (I-50 pts)",null,null,null,"","","","",null,null,"Q12.  Pour répondre « oui », lorsqu'il y a plus d'une baie de lavage (espace d'un camion), un mur ou un rideau doit séparer les baies, à moins que le volume de lavage soit très faible (un camion par baie de lavage). S'il n'y a qu'un espace de lavage, la réponse est alors « sans objet »."]
[796,6,50,25,"I","",1.8914285714285715,0,0,0,50,null,"","Q13.  Les activités de mécanique et d'entreposage sont séparées de l'activité de lavage. (I-50 pts)",null,null,null,"","","","",null,null,"Q13.  Pour répondre « oui », aucune activité de mécanique ne doit être réalisée dans la salle de lavage. Tout le matériel présent doit être en lien avec des activités de lavage seulement (aucun entreposage). Pour une réponse  « partiel », un rideau doit être présent pour séparer les activités de mécanique des activités de lavage."]
[473,5,50,25,"P","",2.0285714285714285,0,0,0,50,null,"","Q14.  La circulation des véhicules et des employés dans les bâtiments est effectuée de façon à prévenir la contamination des véhicules propres. (P-50 pts)",null,null,null,"","","","",null,null,"Q14.  Pour répondre « oui », une séparation physique (mur, porte, rideau) doit exister entre la section où sont stationnés les véhicules lavés et ceux qui ne le sont pas. Les employés qui arrivent avec un camion sale ne doivent pas passer par la section des camions lavés. Cette question est  « sans objet » pour les entreprises qui ont un seul véhicule. "]
[196,6,50,25,"I","",1.6753246753246753,0,0,0,50,null,"","Q15.  En tout temps, les véhicules propres peuvent se stationner à au moins 10 mètres de distance des véhicules sales. (I-50 pts)",null,null,null,"","","","",null,null,"Q15.  Pour répondre « oui », la zone destinée aux véhicules propres doit être bien déterminée et située à plus de 10 mètres de la zone où attendent les véhicules sales."]
[81,4,5,2.5,"I","",1.1168831168831168,0,0,0,5,null,"","Q16.  La porcherie la plus proche se situe à plus de 1 km des installations. (I-5 pts)",null,null,null,"","","","",null,null,"Q16.  Pour répondre « oui », la distance doit être évaluée à vol d'oiseau."]
[516,4,10,5,"P","",2,0,0,0,10,null,"","Q17.  Un programme de lutte antiparasitaire est appliqué et tenu à jour. (P-10 pts)",null,null,null,"","","","",null,null,"Q17.  Pour répondre « oui », le contrôle peut se faire par un exterminateur indépendant et des factures ou rapports doivent être disponibles. Comme alternative, si le transporteur le fait lui même, des factures d'achat de produit doivent être disponibles et des boîtes externes (à l'extérieur????) avec des appâts à l'intérieur doivent être visibles."]
[1965,20,null,0,null,null,0.29870129870129869,"Titre",0,0,0,null,""," Véhicules de transport",null,null,null,"S. o.","Oui","Part.","Non",null,null,"Véhicules de transport"]
[287,7,10,5,"I","",1.9350649350649352,0,0,0,10,null,"","Q18.  Les remorques ont une porte qui permet d'accéder à l'intérieur sans passer par les quais de chargement et de déchargement des porcs. (I-10 pts)",null,null,null,"","","","",null,null,"Q18.  Pour répondre « oui », la porte doit être localisée sur le coté et à l'arrière de toutes les remorques. Si plus d'une remorque en a une, mais que d'autres n'en ont pas, la réponse est  « partiel »."]
[207,5,10,5,"P","",1.6623376623376624,0,0,0,10,null,"","Q19.  La circulation des véhicules chargés de porcs est interdite sur le site de la station de lavage et des garages. (P-10 pts)",null,null,null,"","","","",null,null,"Q19.  Pour répondre « oui », les remorques contenant des porcs vivants ou morts ne doivent pas circuler sur le site, incluant les transferts de remorque à remorque. Il faut valider si la personne responsable de la station est consciente que cela ne devrait pas se produire."]
[107,4,100,50,"P",1,2.12,0,0,0,100,null,1,"Q20.  L'accès aux installations de lavage permet un lavage quotidien de la flotte de véhicules. (P-100 pts)",null,null,null,"","","","",null,null,"Q20.  Pour répondre « oui », un calcul doit être fait afin de valider s'il serait possible de laver tous les véhicules dans la salle de lavage, en présumant qu'ils y retourneraient une fois par jour (à moins que les véhicules soient utilisés pour de longues distances). Le lavage d'une remorque de 53 pieds est estimé à un minimum de 3 heures (1 1/2 heure avec 2 hommes)."]
[101,7,100,50,"P",null,2.6623376623376624,0,0,0,100,null,"","Q21.  Les véhicules de transport utilisés pour le transport des porcs entre les sites de production et le transport des porcs vers les centres de rassemblement et les abattoirs sont différents. (P-100 pts)",null,null,null,"","","","",null,null,"Q21.  Pour répondre « oui », une ségrégation complète des camions utilisés pour les transports d'animaux internes par rapport aux transports externes (vers les abattoirs et les postes de rassemblement) doit être en place. Si certains camions sont ségrégués (au moins 50 %), mais que d'autres font les deux types de transport, la réponse est « partiel ». Si aucun plan n'est mis en place, la réponse est « non »."]
[111,7,100,50,"P","",1.9942857142857142,0,0,0,100,null,"","Q22.  Les véhicules de transport sont lavés, désinfectés et séchés avant d'avoir transporté des porcelets ou des sujets reproducteurs. (P-100 pts)",null,null,null,"","","","",null,null,"Q22.  Une entreprise qui fait plus d'un transport de porcs à l'intérieur du même système de production (pig flow) sans lavage entre les chargements est éligible au « oui ». Par contre, une entreprise qui effectue occasionnellement des transports de porcelets entre différents systèmes de production sans laver ses remorques aura la cote « partiel »."]
[1968,20,null,0,null,null,0.55844155844155841,"Titre",0,0,0,null,""," Nettoyage, lavage, désinfection et séchage",null,null,null,"S. o.","Oui","Part.","Non",null,null,"Nettoyage, lavage, désinfection et séchage"]
[621,4,10,5,"P","",2.4415584415584415,0,0,0,10,null,"","Q23.  Un programme ou une affiche portant sur le nettoyage, le lavage, la désinfection et le séchage (NLDS) des véhicules de transport est disponible sur le site des opérations. (P-10 pts)",null,null,null,null,null,null,null,null,null,"Q23.  Pour répondre « oui », un document explicatif comportant tous les éléments du NLDS est disponible dans la salle de lavage. Ce document doit être de format papier et accessible dans un dossier ou affiché. Ce document peut être générique (ex. : celui du CCSP) ou bien developpé par l'entreprise."]
[622,4,50,25,"P",null,2.5974025974025974,0,0,0,50,null,"","Q24.  Le processus d’assainissement des véhicules de transport respecte les étapes suivantes : 1) curage; 2) rinçage; 3) savonnage avec un détergent; 4) lavage; 5) rinçage; 6) désinfection. (P-50 pts)",null,null,null,"","","","",null,null,"Q24.  Pour répondre « oui », les étapes 1 à 6 doivent toujours être effectuées, incluant l'utilisation d'un savon et d'un désinfectant."]
[168,4,10,5,"P","",1.8571428571428572,0,0,0,10,null,"","Q25.  La station de lavage possède une procédure pour laver, désinfecter et drainer la ou les baies de lavage entre chaque véhicule. (P-10 pts)",null,null,null,"","","","",null,null,"Q25.  Pour répondre « oui », les murs et le plancher doivent être rincés et drainés afin d'enlever toute la matière organique de la baie de lavage. Les flaques d'eau doivent être drainées. Le bas des murs et le plancher doivent être désinfectés. Toutes ces étapes doivent être réalisées dans la procédure de travail."]
[186,6,100,50,"P",null,1.2727272727272727,0,0,0,100,null,"","Q26.  Les véhicules de transport sont complètement séchés avant de reprendre la route. (P-100 pts)",null,null,null,"","","","",null,null,"Q26.  Pour une réponse  « partiel », il faut au moins que 50 % des remorques soient séchées avant de reprendre la route."]
[833,4,100,50,"P",1,2.4025974025974026,0,0,0,100,null,1,"Q27.  Durant le processus d'assainissement, tous les équipements du camion ou de la remorque (pelles, panneaux, etc.) ainsi que les bottes sont lavés, désinfectés et séchés. (P-100 pts)",null,null,null,"","","","",null,null,"Q27.  Pour répondre « oui », il faut vérifier que tous les équipements des casiers sous les remorques et les bottes ont été lavés. Il est important de vérifier que les bottes prévues pour le chargement et le déchargement des porcs soient différentes de celles utilisées pour conduire le camion."]
[1980,20,null,0,null,null,0.51948051948051943,"Titre",0,0,0,null,""," Instruments de manipulation des animaux",null,null,null,"S. o.","Oui","Part.","Non",null,null,"Instruments de manipulation des animaux"]
[596,4,20,10,"I","",1.6883116883116882,{"$f":"IF(B67=20,\"Titre\",IF(L67=1,1,0))","v":0},0,0,20,null,"","Q28.  Les matériaux des instruments de manipulation ne sont pas faits en bois, se lavent et se désinfectent facilement. (I-20 pts)",null,null,null,null,null,null,null,null,null,"Q28.  Pour répondre « oui », les pelles et les panneaux doivent être faits en plastique ou en métal (les manches en bois doivent être remplacés). Les panneaux monocoques sont à privilégier. Les panneaux et les pelles brisés ou très usés doivent être remplacés."]
[606,4,100,50,"P",1,2.3506493506493507,0,0,0,100,null,1,"Q29.  Les instruments de manipulation des porcs sont utilisés uniquement dans les véhicules de transport et les remorques et ils ne sont pas utilisés dans les bâtiments. (P-100 pts)",null,null,null,"","","","",null,null,"Q29.  Pour répondre « oui », les panneaux, les bâtons électriques et les marteaux à tatouer ne sont pas partagés avec la ferme et n'entrent jamais dans les bâtiments."]
[616,4,20,10,"P","",1.9220779220779221,0,0,0,20,null,"","Q30.  Les instruments de manipulation souillés (ex : bâton électrique) sont entreposés dans des contenants lavables ou des sacs jetables. (P-20 pts)",null,null,null,"","","","",null,null,"Q30.  Pour répondre « oui », le bâton électrique, lorsque souillé, ne peut pas être entreposé directement dans la cabine ou sous la couchette sans être d'abord placé dans un contenant ou un sac jetable."]
[1983,20,null,0,null,null,0.25974025974025972,"Titre",0,0,0,null,""," Vêtements et bottes",null,null,null,"S. o.","Oui","Part.","Non",null,null,"Vêtements et bottes"]
[131,4,50,25,"P",null,1.5942857142857143,0,0,0,50,null,"","Q31.  Des vêtements et des bottes propres sont disponibles pour chaque site de production visité. (P-50 pts)",null,null,null,null,null,null,null,null,null,"Q31.  Pour répondre « oui », un ensemble comprenant une salopette et des bottes doit être disponible pour chaque site visité, à moins que les sites fassent partie du même système (pig flow) que la ferme visitée initialement (maternité vers une pouponnière vers un engraissement)."]
[571,4,20,10,"P","",2.7142857142857144,0,0,0,20,null,"","Q32.  Des vêtements de travail spécifiques sont réservés aux activités de chargement des porcs sur les sites de production et de déchargement des porcs aux centres de rassemblement et aux abattoirs. (P-20 pts)",null,null,null,"","","","",null,null,"Q32.  Pour répondre « oui », des ensembles de salopettes, de bottes et des gants (lorsqu'utilisés) sont consacrés aux transports internes et à l'embarquement des porcs et des truies de réforme pour l'abattage. D'autres ensembles sont consacrés uniquement pour le débarquement des porcs à l'abattoir ou au centre de rassemblement. L'utilisation de bottes de plastique à l'abattoir ou au poste de rassemblement est une alternative acceptable."]
[581,4,100,50,"P",null,2.2467532467532467,0,0,0,100,null,"","Q33.  Après le chargement ou le déchargement des porcs, les vêtements et les bottes de travail souillés sont enlevés avant d’entrer dans la cabine du camionneur. (P-100 pts)",null,null,null,"","","","",null,null,"Q33.  Pour répondre « oui », s'assurer que les bottes et le survêtement utilisés pour la manipulation des porcs sont enlevés avant d'entrer dans la cabine.   "]
[137,4,50,25,"P",null,3.116883116883117,0,0,0,50,null,"","Q34.  Les vêtements et les bottes souillés sont entreposés, dans un bac ou un sac en plastique ou encore dans le  camion avec les porcs, de façon à prévenir la contamination des coffres et de la cabine.  (P-50 pts)                          ",null,null,null,"","","","",null,null,"Q34.  Pour répondre « oui », les vêtements et les bottes ne peuvent pas être placés directement dans les casiers sous les remorques ou sous la couchette. Il faut que des bacs ou des sacs de plastique soient utilisés. Comme alternative, la réponse pourra être  « oui » si les vêtements et les bottes sont laissés directement dans la remorque sale."]
[1986,20,null,0,null,null,0.1038961038961039,"Titre",0,0,0,null,""," Litière",null,null,null,"S. o.","Oui","Part.","Non",null,null,"Litière"]
[541,4,10,5,"P","",2.6233766233766236,0,0,0,10,null,"","Q35.  La litière de copeaux de bois, de bran de scie ou la paille est entreposée de façon à éviter la contamination par des produits chimiques, de la vermine, des oiseaux ou des bottes sales. (P-10 pts)",null,null,null,null,null,null,null,null,null,"Q35.  Pour répondre « oui », la litière doit être entreposée dans un bâtiment ou une remorque fermée en tout temps afin d'éviter l'intrusion de la vermine et des oiseaux. Aucun produit chimique ne doit être conservé dans cette section. Une paire de bottes ou des sacs de plastique doivent être disponibles pour avoir accès à cet endroit."]
[146,6,50,25,"P","",2.0909090909090908,0,0,0,50,null,"","Q36.  Le transporteur utilise une station d'écurage autre que celles qui sont accessibles sur les sites des centres de rassemblement et des abattoirs. (P-50 pts)",null,null,null,"","","","",null,null,"Q36.  Pour répondre « partiel », il faut que l'écurage de la remorque soit fait ailleurs plus de 50 % du temps."]
[1989,20,null,0,null,null,0.67532467532467533,"Titre",0,0,0,null,""," Produits de nettoyage, de lavage et de désinfection",null,null,null,"S. o.","Oui","Part.","Non",null,null,"Produits de nettoyage, de lavage et de désinfection"]
[681,4,10,5,"P",null,0.81142857142857139,0,0,0,10,null,"","Q37.  Les produits entreposés sont bien identifiés. (P-10 pts)",null,null,null,null,null,null,null,null,null,"Q37.  Pour répondre « oui », les noms des produits dans les barils ou dans les contenants portables sont bien identifiés et toujours visibles."]
[167,6,100,50,"P",1,1.8857142857142857,0,0,0,100,null,1,"Q38.  Du savon ou un autre produit détergent est utilisé lors du lavage. (P-100 pts)",null,null,null,"","","","",null,null,"Q38.  Pour répondre « oui », le savon doit être utilisé de façon systématique lors du lavage de toutes les remorques. Pour répondre « partiel », il faut que le savon soit utilisé dans plus de 50 % des lavages.  Pour être éligible aux deux réponses antérieures, le savon devra être disponible dans la baie de lavage en tout temps. "]
[177,7,100,50,"P",1,2.9314285714285715,0,0,0,100,null,1,"Q39.  Les désinfectants utilisés sont efficaces contre le virus de la diarrhée épidémique porcine (DEP) et celui du SRRP. (P-100 pts)",null,null,null,null,null,null,null,null,null,"Q39.  Pour répondre « oui », s'assurer que le nom du désinfectant soit dans la liste des désinfectants reconnus comme étant efficaces contre le virus de la DEP dans le document publié par l'Équipe québécoise de santé porcine (EQSP), disponible sur le site Web des Éleveurs de porcs du Québec. Si les remorques sont sorties dehors 10 minutes après l'application du désinfectant, s'assurer d'ajouter du propylène glycol de grade alimentaire en période hivernale (si cela n'est pas fait, la réponse est « partiel »)."]
[1991,20,null,0,null,null,0.24675324675324675,"Titre",0,0,0,null,""," Points de contrôle",null,null,null,"S. o.","Oui","Part.","Non",null,null,"Points de contrôle"]
[752,4,100,50,"P","",1.5371428571428571,0,0,0,100,null,"","Q40.  Le camionneur n'entre jamais dans la zone (bâtiments) réservée à la production. (P-100 pts)",null,null,null,null,null,null,null,null,null,"Q40.  Pour répondre « oui », le camionneur ne doit jamais dépasser les portes d'entrée des bâtiments, que ce soit sur le quai ou l'entrée des employés. Si le camionneur entre occasionnellement dans les bâtiments pour aider les producteurs, la réponse est alors « non »."]
[753,4,50,25,"P","",2.7371428571428571,0,0,0,50,null,"","Q41.  Les porcs transportés par l'entreprise sont chargés uniquement par le personnel de la ferme. (P-50 pts)",null,null,null,"","","","",null,null,"Q41.  Pour répondre « oui », le transporteur et son aide ne doivent jamais entrer dans les bâtiments pour sélectionner et charger les porcs dans la remorque. Les équipes de chargement fournies par le transporteur (arrivant avec un véhicule différent) qui entrent par le corridor danois ou la douche et qui suivent le protocole d'entrée de la ferme, comme des employés, sont acceptables. Il faut, par contre, s'assurer qu'elles ne poussent pas les animaux jusque dans la remorque."]
[696,5,20,10,"P","",2.1657142857142859,0,0,0,20,null,"","Q42.  L’entretien et la calibration des équipements de désinfection sont effectués selon les recommandations du fabricant. (P-20 pts)",null,null,null,"","","","",null,null,"Q42.  Pour répondre « oui », le fabricant doit avoir passé et calibré les équipements au cours de la dernière année. S'il n'y a pas de soutien technique offert par le fabricant ou une tierce personne, il faudra discuter avec le transporteur afin de valider s'il sait comment faire la calibration. Si l'information recueillie semble claire et raisonnable, la réponse sera « oui »."]
[121,6,20,10,"P",null,2.5371428571428569,0,0,0,20,null,"","Q43.  Un contrôle visuel de la qualité du lavage est effectué sur les véhicules lavés et l'information est inscrite dans un registre. (P-20 pts)",null,null,null,"","","","",null,null,"Q43.  Le contrôle visuel doit être fait par une personne autre que celle qui a lavé la remorque. L'information doit être inscrite dans un registre disponible sur place lors de la visite. Pour répondre « oui », il faut que plus de 25 % des remorques soient contrôlées par semaine. Pour répondre « partiel », il faut que plus de 10 % des remorques soient contrôlées par semaine. L'absence de registre entraîne automatiquement une réponse « non »."]
[127,4,20,10,"P",null,2.3896103896103895,0,0,0,20,null,"","Q44.  Des tests sont effectués régulièrement pour vérifier la propreté ou l'innocuité (PCR pour la DEP, gélose, autre) des véhicules de transport et de la station de lavage. (P-20 pts)",null,null,null,"","","","",null,null,"Q44.  Pour répondre « oui », les transporteurs ayant plus de 2 remorques doivent vérifier leurs stations de lavage minimalement une fois par mois. Il faut avoir accès au dernier résultat sur place pour valider la fréquence des vérifications."]
[1997,20,null,0,null,null,0.16883116883116883,"Titre",0,0,0,null,""," Source d'eau",null,null,null,"S. o.","Oui","Part.","Non",null,null,"Source d'eau"]
[662,4,100,50,"I",1,0.89610389610389607,0,0,0,100,null,1,"Q45.  L'eau n'est pas recyclée à cette station de lavage. (I-100 pts)",null,null,null,null,null,null,null,null,null,"Q45.  Pour répondre « oui », l'eau doit provenir d'un puits ou de l'aqueduc et aucun recyclage d'eau ne doit être fait à la station de lavage."]

{"sheet":"RAPPORT","index":2,"n_rows":60,"n_cols":21,"rows_kept":60,"cut":false,"hidden":false,"merged":[[57,13,57,20],[58,13,58,20],[44,13,44,16],[44,17,44,18],[44,19,44,20],[45,13,45,16],[45,17,45,18],[45,19,45,20],[42,13,42,14],[42,17,42,18],[42,19,42,20],[43,13,43,16],[43,17,43,18],[43,19,43,20],[39,13,39,16],[39,17,39,18],[39,19,39,20],[40,13,40,14],[40,17,40,18],[40,19,40,20],[37,13,37,16],[37,17,37,18],[37,19,37,20],[38,13,38,16],[38,17,38,18],[38,19,38,20],[32,13,32,16],[32,17,32,18],[32,19,32,20],[34,13,34,20],[36,13,36,14],[36,17,36,18],[36,19,36,20],[30,13,30,14],[30,17,30,18],[30,19,30,20],[31,13,31,16],[31,17,31,18],[31,19,31,20],[27,13,27,14],[27,17,27,18],[27,19,27,20],[28,13,28,14],[28,17,28,18],[28,19,28,20],[14,13,14,20],[16,14,16,15],[16,17,21,20],[17,14,17,15],[18,14,18,15],[19,14,19,15],[20,14,20,15],[21,14,21,15],[23,13,23,20],[25,13,25,14],[25,17,25,18],[25,19,25,20],[26,13,26,14],[26,17,26,18],[26,19,26,20]]}
["NoQ","MEP","Definition",null,null,null,null,"DATA","Code VBA","Copie"]
[1,1,null,null,null,null,null,null,0,0]
[2,1,null,null,null,null,null,null,1,0]
[3,1,null,null,null,null,null,null,{"$f":"ROW(I13)","v":13},{"$f":"ROW(J13)","v":13}]
[4,1,null,null,null,null,null,null,{"$f":"ROW(I14)","v":14},{"$f":"ROW(J14)","v":14}]
[5,1,null,null,null,null,null,null,{"$f":"ROW(I56)+17","v":73},{"$f":"ROW(J56)+17","v":73}]
[6,1,null,null,null,null,null,null,{"$f":"ROW(I56)+17","v":73},{"$f":"ROW(J56)+17","v":73}]
[7,1]
[8,1,null,null,null,null,null,null,"$W:$W","$W:$W"]
[9,1,null,null,null,null,null,null,{"$f":"CONCATENATE(\"$M$\",I5,\":$V$\",I6)","v":"$M$14:$V$73"}]
[10,1,null,null,null,null,null,null,"http://biosec.ca/BIOSECTRSP/imagine.png"]
[11,1,null,null,null,null,null,null,"http://biosec.ca/BIOSECTRSP/BMTRSP.png"]
[12,1,null,null,null,null,null,null,"M14:V73","M14:V73"]
[13,1,null,null,null,null,null,null,{"$f":"ROW(I56)+5","v":61},{"$f":"ROW(J56)+5","v":61}]
[14,42,null,null,null,null,null,null,1,null,null,null,null,"Coordonnées et description du lieu"]
[15,14]
[16,27,null,null,null,null,null,null,"http://biosec.ca/BIOSECTRSP/CENTILETRSP.csv",null,null,null,null,"Identification du lieu",{"$f":"CONCATENATE(QUESTIONS!O23,\" NIL\",QUESTIONS!H29)","v":" NIL0"},null,null,{"$f":"IF(I18=1,\"OR\",IF(I18=2,\"ARGENT\",\"BRONZE\"))","v":"BRONZE"}]
[17,27,null,null,null,null,null,{"$f":"QUESTIONS!H16","v":0},{"$f":"IF(T33<0.5,3,IF(AND(T33>0.75,H18=1),1,2))","v":3},{"$f":"IF(I18=1,\"OR\",IF(I18=2,\"ARGENT\",\"BRONZE\"))","v":"BRONZE"},null,null,null,"Nom du responsable",{"$f":"QUESTIONS!O24","v":0}]
[18,28,null,null,null,null,null,null,null,null,null,null,null,"Date de l'évaluation",{"$f":"QUESTIONS!O25","v":"2019-05-24"}]
[19,27,null,null,null,null,null,{"$f":"IF(QUESTIONS!O26=\"\",\"\",QUESTIONS!O26)","v":""},null,null,null,null,null,"Consultant (option)",{"$f":"H20","v":""}]
[20,27,null,null,null,null,null,{"$f":"IF(QUESTIONS!O27=\"\",\"\",QUESTIONS!O27)","v":""},null,null,null,null,null,"Adresse",{"$f":"H21","v":""}]
[21,27,null,null,null,null,null,null,null,null,null,null,null,"Nom de l'auditeur",{"$f":"QUESTIONS!O28","v":"Zenoma Tesselata"}]
[22,14]
[23,42,null,null,null,null,null,null,null,null,null,null,null,"Résultat de l'audit en biosécurité"]
[24,14]
[25,44,null,null,null,null,null,null,null,null,null,null,null,"Composantes",null,"Facteur de risque",null,"Points",null,"%"]
[26,45,null,null,null,null,null,null,null,null,null,null,null,"Installations et équipements",null,{"$f":"QUESTIONS!I24","v":15},null,{"$f":"CONCATENATE(ROUND(QUESTIONS!I25,0),\"/\",ROUND(QUESTIONS!I26,0))","v":"0/860"},null,{"$f":"QUESTIONS!I27","v":0}]
[27,46,null,null,null,null,null,null,null,null,null,null,null,"Procédures et protocoles",null,{"$f":"QUESTIONS!J24","v":30},null,{"$f":"CONCATENATE(ROUND(QUESTIONS!J25,0),\"/\",QUESTIONS!J26)","v":"0/1620"},null,{"$f":"QUESTIONS!J27","v":0}]
[28,47,null,null,null,null,null,null,null,null,null,null,null,"Total",null,{"$f":"SUM(P27:P28)","v":45},null,{"$f":"CONCATENATE(ROUND(QUESTIONS!K25,0),\"/\",QUESTIONS!K26)","v":"0/2480"},null,{"$f":"QUESTIONS!K27","v":0}]
[29,14]
[30,44,null,null,null,null,null,null,null,null,null,null,null,"Conformité aux recommandations des experts"]
[31,53,null,null,null,null,null,null,null,null,null,null,null,"Pointage global (moyenne des facteurs de risques)",null,null,null,null,null,{"$f":"T29","v":0}]
[32,54,null,null,null,null,null,null,null,null,null,null,null,"Pointage moyen (moyenne des deux composantes)",null,null,null,null,null,{"$f":"AVERAGE(T27:U28)","v":0}]
[33,14]
[34,42,null,null,null,null,null,null,null,null,null,null,null,{"$f":"CONCATENATE(\"Statistiques comparatives (références\",CENTILE!C112,\")\")","v":"Statistiques comparatives (références 2017-08-30)"}]
[35,14,null,null,null,null,null,1]
[36,44,null,null,null,null,null,0,null,null,null,null,null,"Statistiques sur les participants",null,null,null,"Nombre",null,"%"]
[37,53,null,null,null,null,null,0,{"$f":"IF($T$33>0.75,1,0)","v":0},null,null,null,null,"Lieux dans la zone OR (pointage moyen supérieur à 75 %)",null,null,null,{"$f":"CENTILE!C107+I38","v":36},null,{"$f":"R38/R$41","v":0.6},0.25]
[38,53,null,null,null,null,null,2,{"$f":"IF(I38+I40>=1,0,1)","v":0},null,null,null,null,"Lieux dans la zone ARGENT (pointage moyen entre 50 et 75 % )",null,null,null,{"$f":"CENTILE!C108+I39","v":22},null,{"$f":"R39/R$41","v":0.36666666666666664},0.25]
[39,54,null,null,null,null,null,2,{"$f":"IF($T$33<0.5,1,0)","v":1},null,null,null,null,"Lieux dans la zone BRONZE (pointage moyen inférieur à 50 %)",null,null,null,{"$f":"CENTILE!C109+I40","v":2},null,{"$f":"R40/R$41","v":3.3333333333333333E-2},0.25]
[40,47,null,null,null,null,null,2,null,null,null,null,null,"Total",null,null,null,{"$f":"SUM(R38:S40)","v":60},null,{"$f":"R41/R$41","v":1},0.25]
[41,14,null,null,null,null,null,0]
[42,44,null,null,null,null,null,2,null,null,null,null,null,"Position du lieu (le no 1 est le meilleur)",null,null,null,"Rang",null,"Rang (%)"]
[43,53,null,null,null,null,null,0,null,null,null,null,null,"Installations et équipements",null,null,null,{"$f":"CONCATENATE(VLOOKUP(ROUND($T27,2),CENTILE!$A:$F,3,FALSE),\"/\",CENTILE!$C$110+1)","v":"60/60"},null,{"$f":"VLOOKUP(ROUND($T27,2),CENTILE!$A:$F,3,FALSE)/(CENTILE!$C$110+1)","v":1}]
[44,53,null,null,null,null,null,0,null,null,null,null,null,"Procédures et protocoles",null,null,null,{"$f":"CONCATENATE(VLOOKUP(ROUND($T28,2),CENTILE!$A:$F,4,FALSE),\"/\",CENTILE!$C$110+1)","v":"60/60"},null,{"$f":"VLOOKUP(ROUND($T28,2),CENTILE!$A:$F,4,FALSE)/(CENTILE!$C$110+1)","v":1}]
[45,54,null,null,null,null,null,3,null,null,null,null,null,"Pointage moyen (moyenne des deux composantes)",null,null,null,{"$f":"CONCATENATE(VLOOKUP(ROUND($T33,2),CENTILE!$A:$F,6,FALSE),\"/\",CENTILE!$C$110+1)","v":"60/60"},null,{"$f":"VLOOKUP(ROUND($T33,2),CENTILE!$A:$F,6,0)/(CENTILE!$C$110+1)","v":1}]
[46,1,null,null,null,null,null,2]
[47,1,null,null,null,null,null,1]
[48,1,null,null,null,null,null,2]
[49,1,null,null,null,null,null,0]
[50,1,null,null,null,null,null,2]
[51,1,null,null,null,null,null,0]
[52,1,null,null,null,null,null,2]
[53,1]
[54,1,null,null,null,null,null,2]
[55,1,null,null,null,null,null,0]
[56,1,null,null,null,null,null,2]
[57,42,null,null,null,null,null,5,null,null,null,null,null,{"$f":"CONCATENATE(\"L'audit a permis d'identifier \",H58, \" mesures qui ne sont pas totalement conformes\")","v":"L'audit a permis d'identifier 5 mesures qui ne sont pas totalement conformes"}]
[58,42,null,null,null,null,null,5,null,null,null,null,null,{"$f":"CONCATENATE(\"Liste des \", H59, \" mesures jugées les plus importantes pour améliorer la biosécurité\")","v":"Liste des 5 mesures jugées les plus importantes pour améliorer la biosécurité"}]
[59,1]

{"sheet":"CENTILE","index":3,"n_rows":112,"n_cols":16,"rows_kept":112,"cut":false,"hidden":true,"merged":[]}
["pct","pct","RangI","RangP","RangT","RangM",null,null,null,"Ligne","NmVariable","ValeurO","ValeurF","Lebon","LeMoinsBon","Simul"]
[0,{"$f":"B3","v":1},{"$f":"C3","v":60},{"$f":"D3","v":60},{"$f":"E3","v":60},{"$f":"F3","v":60},null,null,null,2,{"$f":"GESTION!A2","v":"QIDCDPQO"},{"$f":"GESTION!H2","v":"20190524-NIL0-AucunLieuXXXXXXXXXXX"},"Aucun","20170829-NIL34568-Q1234567-AucunLieu","20170829-NIL34568-Q1234567-AucunLieu"]
[{"$f":"B3/100","v":0.01},1,60,60,60,60,null,null,null,3,{"$f":"GESTION!A3","v":"QIDCDPQF"},{"$f":"GESTION!H3","v":"20190524-0-AucuneMRC"},{"$f":"L3","v":"20190524-0-AucuneMRC"},"20170829-Q1234567-AucuneMRC","20170829-Q1234567-AucuneMRC"]
[{"$f":"B4/100","v":0.02},2,60,60,60,60,null,null,null,4,{"$f":"GESTION!A4","v":"IdAudit"},{"$f":"GESTION!H4","v":"ZENOTESS"},{"$f":"L4","v":"ZENOTESS"},"ZENOTESS","ZENOTESS"]
[0.03,3,60,60,60,60,null,null,null,5,{"$f":"GESTION!A5","v":"PrenomAudit"},{"$f":"GESTION!H5","v":"Zenoma"},"Zenoma","Zenoma","Zenoma"]
[0.04,4,60,60,60,60,null,null,null,6,{"$f":"GESTION!A6","v":"NomAudit"},{"$f":"GESTION!H6","v":"Tesselata"},"Tesselata","Tesselata","Tesselata"]
[0.05,5,60,60,60,60,null,null,null,7,{"$f":"GESTION!A7","v":"CourrielAudit"},{"$f":"GESTION!H7","v":"zenona@gmail.ca"},"zenona@gmail.ca","zenona@gmail.ca","zenona@gmail.ca"]
[0.06,6,60,60,60,60,null,null,null,8,{"$f":"GESTION!A8","v":"CourrielClient"},{"$f":"GESTION!H8","v":0},"Aucun","Aucun","Aucun"]
[7.0000000000000007E-2,7,60,60,60,60,null,null,null,9,{"$f":"GESTION!A9","v":"EnvoiAudit"},{"$f":"GESTION!H9","v":true},"Aucun",1,1]
[0.08,8,60,60,60,60,null,null,null,10,{"$f":"GESTION!A10","v":"EnvoiClient"},{"$f":"GESTION!H10","v":true},"Aucun",1,1]
[0.09,9,60,60,60,60,null,null,null,11,{"$f":"GESTION!A11","v":"NmQuestAudit"},{"$f":"GESTION!H11","v":0},0,"Q1234567","Q1234567"]
[0.1,10,60,60,60,60,null,null,null,12,{"$f":"GESTION!A12","v":"CodeValida"},{"$f":"GESTION!H12","v":0},"Aucun",1234,1234]
[0.11,11,60,60,60,60,null,null,1,13,{"$f":"GESTION!A13","v":"MRC"},{"$f":"GESTION!H13","v":"AucuneMRC"},"AucuneMRC","AucuneMRC","AucuneMRC"]
[0.12,12,60,60,60,60,null,null,null,14,{"$f":"GESTION!A14","v":"GEST13"},{"$f":"GESTION!H14","v":0},0,0,0]
[0.13,13,60,60,60,60,null,null,null,15,{"$f":"GESTION!A15","v":"GEST14"},{"$f":"GESTION!H15","v":0},0,0,0]
[0.14000000000000001,14,60,60,60,60,null,null,null,16,{"$f":"GESTION!A16","v":"GEST15"},{"$f":"GESTION!H16","v":0},0,0,0]
[0.15,15,60,60,60,60,null,null,null,17,{"$f":"GESTION!A17","v":"GEST16"},{"$f":"GESTION!H17","v":0},0,0,0]
[0.16,16,60,60,60,60,null,null,null,18,{"$f":"GESTION!A18","v":"GEST17"},{"$f":"GESTION!H18","v":0},0,0,0]
[0.17,17,60,60,60,60,null,null,null,19,{"$f":"GESTION!A19","v":"GEST18"},{"$f":"GESTION!H19","v":0},0,0,0]
[0.18,18,60,60,60,60,null,null,null,20,{"$f":"GESTION!A20","v":"GEST19"},{"$f":"GESTION!H20","v":0},0,0,0]
[0.19,19,60,60,60,60,null,null,null,21,{"$f":"GESTION!A21","v":"GEST20"},{"$f":"GESTION!H21","v":0},0,0,0]
[0.2,20,60,60,60,60,null,null,null,2,{"$f":"QUESTIONS!A2","v":"NbQuInst"},{"$f":"QUESTIONS!H2","v":15},15,15,15]
[0.21,21,60,60,60,60,null,null,null,3,{"$f":"QUESTIONS!A3","v":"PtQInstA"},{"$f":"QUESTIONS!H3","v":0},0,805,264]
[0.22,22,60,60,60,60,null,null,null,4,{"$f":"QUESTIONS!A4","v":"PtQInstT"},{"$f":"QUESTIONS!H4","v":860},860,860,860]
[0.23,23,60,60,60,60,null,null,null,5,{"$f":"QUESTIONS!A5","v":"NbQuProc"},{"$f":"QUESTIONS!H5","v":30},30,29,30]
[0.24,24,60,60,60,60,null,null,null,6,{"$f":"QUESTIONS!A6","v":"PtQProcA"},{"$f":"QUESTIONS!H6","v":0},0,1495,317]
[0.25,25,60,60,60,60,null,null,null,7,{"$f":"QUESTIONS!A7","v":"PtQProcT"},{"$f":"QUESTIONS!H7","v":1620},1620,1570,1620]
[0.26,26,60,59,60,60,null,null,null,8,{"$f":"QUESTIONS!A8","v":"NbQuTout"},{"$f":"QUESTIONS!H8","v":45},45,44,45]
[0.27,27,60,59,60,60,null,null,null,9,{"$f":"QUESTIONS!A9","v":"PtQToutA"},{"$f":"QUESTIONS!H9","v":0},0,2300,581]
[0.28000000000000003,28,60,59,60,60,null,null,null,10,{"$f":"QUESTIONS!A10","v":"PtQToutT"},{"$f":"QUESTIONS!H10","v":2480},2480,2430,2480]
[0.28999999999999998,29,60,59,60,60,null,null,null,11,{"$f":"QUESTIONS!A11","v":"NbQuesSO"},{"$f":"QUESTIONS!H11","v":0},0,1,0]
[0.3,30,60,59,60,60,null,null,null,12,{"$f":"QUESTIONS!A12","v":"NbQRepon"},{"$f":"QUESTIONS!H12","v":0},0,45,45]
[0.31,31,60,59,60,60,null,null,null,13,{"$f":"QUESTIONS!A13","v":"NbQueTot"},{"$f":"QUESTIONS!H13","v":45},45,45,45]
[0.32,32,60,59,60,60,null,null,null,14,{"$f":"QUESTIONS!A14","v":"RotaCont"},{"$f":"QUESTIONS!H14","v":0},0,0,0]
[0.33,33,60,59,60,60,null,null,null,15,{"$f":"QUESTIONS!A15","v":"Type"},{"$f":"QUESTIONS!H15","v":""},"","TRSLPR","TRSLPR"]
[0.34,34,60,59,60,60,null,null,null,16,{"$f":"QUESTIONS!A16","v":"IndicOR"},{"$f":"QUESTIONS!H16","v":0},0,1,0.1]
[0.35,35,60,59,60,60,null,null,null,17,{"$f":"QUESTIONS!A17","v":"QUEST17"},{"$f":"QUESTIONS!H17","v":0},0,0,0]
[0.36,36,60,59,60,60,null,null,null,18,{"$f":"QUESTIONS!A18","v":"QUEST18"},{"$f":"QUESTIONS!H18","v":0},0,0,0]
[0.37,37,60,59,60,60,null,null,null,19,{"$f":"QUESTIONS!A19","v":"QUEST19"},{"$f":"QUESTIONS!H19","v":0},0,0,0]
[0.38,38,60,59,60,60,null,null,null,20,{"$f":"QUESTIONS!A20","v":"QUEST20"},{"$f":"QUESTIONS!H20","v":0},0,0,0]
[0.39,39,60,59,60,60,null,null,null,21,{"$f":"QUESTIONS!A21","v":"QUEST21"},{"$f":"QUESTIONS!H21","v":0},0,0,0]
[0.4,40,60,59,60,60,null,null,null,22,{"$f":"QUESTIONS!A22","v":"CodCTPTV"},{"$f":"QUESTIONS!H22","v":0},"Aucun",0,0]
[0.41,41,60,59,60,60,null,null,null,23,{"$f":"QUESTIONS!A23","v":"IdLieuNM"},{"$f":"QUESTIONS!H23","v":"INCONNU"},"Aucun","Ferme LeBon","Ferme LeMoinsBon"]
[0.42,42,60,59,60,60,null,null,null,24,{"$f":"QUESTIONS!A24","v":"NmReLieu"},{"$f":"QUESTIONS!H24","v":"INCONNU"},"INCONNU","Jean Lebon","Jean LeMoinsBon"]
[0.43,43,59,59,60,60,null,null,null,25,{"$f":"QUESTIONS!A25","v":"DateEval"},{"$f":"QUESTIONS!H25","v":43609},43609,42976,42976]
[0.44,44,59,59,60,60,null,null,null,26,{"$f":"QUESTIONS!A26","v":"NmVeteri"},{"$f":"QUESTIONS!H26","v":"Dr Inconnu"},"Aucun","Jules Le Vet","Jules Le Vet"]
[0.45,45,58,57,60,60,null,null,null,27,{"$f":"QUESTIONS!A27","v":"AdreLieu"},{"$f":"QUESTIONS!H27","v":"Adresse inconnue"},"Adresse inconnue","533, La Belle Rue, Saint-Zéphirin","533, La Belle Rue, Saint-Zéphirin"]
[0.46,46,58,57,60,60,null,null,null,28,{"$f":"QUESTIONS!A28","v":"NomAudit"},{"$f":"QUESTIONS!H28","v":"Zenoma Tesselata"},"Aucun","Zenoma Tesselata","Zenoma Tesselata"]
[0.47,47,58,57,60,59,null,null,null,29,{"$f":"QUESTIONS!A29","v":"NIL"},{"$f":"QUESTIONS!H29","v":0},0,34568,34568]
[0.48,48,58,57,58,59,null,null,null,30,{"$f":"QUESTIONS!A30","v":"CodeTR"},{"$f":"QUESTIONS!H30","v":false},false,1,1]
[0.49,49,58,56,58,59,null,null,null,31,{"$f":"QUESTIONS!A31","v":"CodeSL"},{"$f":"QUESTIONS!H31","v":false},false,1,1]
[0.5,50,58,56,58,59,null,null,null,32,{"$f":"QUESTIONS!A32","v":"QUEST32"},{"$f":"QUESTIONS!H32","v":false},false,0,0]
[0.51,51,58,55,58,59,null,null,null,33,{"$f":"QUESTIONS!A33","v":"QUEST33"},{"$f":"QUESTIONS!H33","v":false},false,0,0]
[0.52,52,58,55,57,59,null,null,null,34,{"$f":"QUESTIONS!A34","v":"QUEST34"},{"$f":"QUESTIONS!H34","v":0},null,0,0]
[0.53,53,58,55,57,58,null,null,null,35,{"$f":"QUESTIONS!A35","v":1954},{"$f":"QUESTIONS!H35","v":"Titre"},null,"Titre","Titre"]
[0.54,54,58,55,57,58,null,null,null,36,{"$f":"QUESTIONS!A36","v":11},{"$f":"QUESTIONS!H36","v":0},null,1,4]
[0.55000000000000004,55,58,54,57,56,null,null,null,37,{"$f":"QUESTIONS!A37","v":462},{"$f":"QUESTIONS!H37","v":0},null,2,2]
[0.56000000000000005,56,57,54,57,56,null,null,null,38,{"$f":"QUESTIONS!A38","v":592},{"$f":"QUESTIONS!H38","v":0},null,2,4]
[0.56999999999999995,57,57,52,56,56,null,null,null,39,{"$f":"QUESTIONS!A39","v":1959},{"$f":"QUESTIONS!H39","v":"Titre"},null,"Titre","Titre"]
[0.57999999999999996,58,56,52,53,55,null,null,null,40,{"$f":"QUESTIONS!A40","v":441},{"$f":"QUESTIONS!H40","v":0},null,2,2]
[0.59,59,56,50,53,55,null,null,null,41,{"$f":"QUESTIONS!A41","v":814},{"$f":"QUESTIONS!H41","v":0},null,2,4]
[0.6,60,56,50,52,55,null,null,null,42,{"$f":"QUESTIONS!A42","v":812},{"$f":"QUESTIONS!H42","v":0},null,2,4]
[0.61,61,54,49,52,54,null,null,null,43,{"$f":"QUESTIONS!A43","v":806},{"$f":"QUESTIONS!H43","v":0},null,2,4]
[0.62,62,53,49,52,54,null,null,null,44,{"$f":"QUESTIONS!A44","v":447},{"$f":"QUESTIONS!H44","v":0},null,2,4]
[0.63,63,53,48,51,53,null,null,null,45,{"$f":"QUESTIONS!A45","v":807},{"$f":"QUESTIONS!H45","v":0},null,2,4]
[0.64,64,53,47,51,53,null,null,null,46,{"$f":"QUESTIONS!A46","v":160},{"$f":"QUESTIONS!H46","v":0},null,2,3]
[0.65,65,53,46,50,51,null,null,null,47,{"$f":"QUESTIONS!A47","v":158},{"$f":"QUESTIONS!H47","v":0},null,2,3]
[{"$f":"B68/100","v":0.66},66,52,45,48,50,null,null,null,48,{"$f":"QUESTIONS!A48","v":431},{"$f":"QUESTIONS!H48","v":0},null,2,4]
[0.67,67,51,45,46,49,null,null,null,49,{"$f":"QUESTIONS!A49","v":796},{"$f":"QUESTIONS!H49","v":0},null,3,3]
[0.68,68,51,43,45,47,null,null,null,50,{"$f":"QUESTIONS!A50","v":473},{"$f":"QUESTIONS!H50","v":0},null,2,4]
[0.69,69,49,42,45,46,null,null,null,51,{"$f":"QUESTIONS!A51","v":196},{"$f":"QUESTIONS!H51","v":0},null,3,3]
[0.7,70,49,41,45,45,null,null,null,52,{"$f":"QUESTIONS!A52","v":81},{"$f":"QUESTIONS!H52","v":0},null,2,4]
[0.71,71,46,40,43,43,null,null,null,53,{"$f":"QUESTIONS!A53","v":516},{"$f":"QUESTIONS!H53","v":0},null,2,4]
[0.72,72,46,36,40,42,null,null,null,54,{"$f":"QUESTIONS!A54","v":1965},{"$f":"QUESTIONS!H54","v":"Titre"},null,"Titre","Titre"]
[0.73,73,46,33,40,41,null,null,null,55,{"$f":"QUESTIONS!A55","v":287},{"$f":"QUESTIONS!H55","v":0},null,3,3]
[0.74,74,46,32,38,39,null,null,null,56,{"$f":"QUESTIONS!A56","v":207},{"$f":"QUESTIONS!H56","v":0},null,2,4]
[0.75,75,45,32,36,37,null,null,null,57,{"$f":"QUESTIONS!A57","v":107},{"$f":"QUESTIONS!H57","v":0},null,2,4]
[0.76,76,44,32,35,36,null,null,null,58,{"$f":"QUESTIONS!A58","v":101},{"$f":"QUESTIONS!H58","v":0},null,2,4]
[0.77,77,44,30,35,35,null,null,null,59,{"$f":"QUESTIONS!A59","v":111},{"$f":"QUESTIONS!H59","v":0},null,3,3]
[0.78,78,43,28,32,34,null,null,null,60,{"$f":"QUESTIONS!A60","v":1968},{"$f":"QUESTIONS!H60","v":"Titre"},null,"Titre","Titre"]
[0.79,79,40,27,30,33,null,null,null,61,{"$f":"QUESTIONS!A61","v":621},{"$f":"QUESTIONS!H61","v":0},null,2,3]
[0.8,80,38,25,27,31,null,null,null,62,{"$f":"QUESTIONS!A62","v":622},{"$f":"QUESTIONS!H62","v":0},null,2,4]
[0.81,81,36,23,27,31,null,null,null,63,{"$f":"QUESTIONS!A63","v":168},{"$f":"QUESTIONS!H63","v":0},null,2,4]
[0.82,82,34,23,25,28,null,null,null,64,{"$f":"QUESTIONS!A64","v":186},{"$f":"QUESTIONS!H64","v":0},null,2,2]
[0.83,83,32,22,23,24,null,null,null,65,{"$f":"QUESTIONS!A65","v":833},{"$f":"QUESTIONS!H65","v":0},null,2,4]
[0.84,84,30,21,21,23,null,null,null,66,{"$f":"QUESTIONS!A66","v":1980},{"$f":"QUESTIONS!H66","v":"Titre"},null,"Titre","Titre"]
[0.85,85,28,19,20,20,null,null,null,67,{"$f":"QUESTIONS!A67","v":596},{"$f":"QUESTIONS!H67","v":0},null,2,4]
[0.86,86,26,18,19,18,null,null,null,68,{"$f":"QUESTIONS!A68","v":606},{"$f":"QUESTIONS!H68","v":0},null,2,4]
[0.87,87,24,14,15,17,null,null,null,69,{"$f":"QUESTIONS!A69","v":616},{"$f":"QUESTIONS!H69","v":0},null,2,4]
[0.88,88,22,10,12,16,null,null,null,70,{"$f":"QUESTIONS!A70","v":1983},{"$f":"QUESTIONS!H70","v":"Titre"},null,"Titre","Titre"]
[0.89,89,21,9,10,12,null,null,null,71,{"$f":"QUESTIONS!A71","v":131},{"$f":"QUESTIONS!H71","v":0},null,2,4]
[0.9,90,19,6,9,9,null,null,null,72,{"$f":"QUESTIONS!A72","v":571},{"$f":"QUESTIONS!H72","v":0},null,2,4]
[0.91,91,18,4,6,8,null,null,null,73,{"$f":"QUESTIONS!A73","v":581},{"$f":"QUESTIONS!H73","v":0},null,2,4]
[0.92,92,14,4,6,7,null,null,null,74,{"$f":"QUESTIONS!A74","v":137},{"$f":"QUESTIONS!H74","v":0},null,2,4]
[0.93,93,10,4,5,5,null,null,null,75,{"$f":"QUESTIONS!A75","v":1986},{"$f":"QUESTIONS!H75","v":"Titre"},null,"Titre","Titre"]
[0.94,94,9,4,4,4,null,null,null,76,{"$f":"QUESTIONS!A76","v":541},{"$f":"QUESTIONS!H76","v":0},null,2,4]
[0.95,95,8,4,2,1,null,null,null,77,{"$f":"QUESTIONS!A77","v":146},{"$f":"QUESTIONS!H77","v":0},null,3,3]
[0.96,96,8,3,1,1,null,null,null,78,{"$f":"QUESTIONS!A78","v":1989},{"$f":"QUESTIONS!H78","v":"Titre"},null,"Titre","Titre"]
[0.97,97,6,2,1,1,null,null,null,79,{"$f":"QUESTIONS!A79","v":681},{"$f":"QUESTIONS!H79","v":0},null,2,4]
[0.98,98,6,2,1,1,null,null,null,80,{"$f":"QUESTIONS!A80","v":167},{"$f":"QUESTIONS!H80","v":0},null,2,3]
[0.99,99,6,1,1,1,null,null,null,81,{"$f":"QUESTIONS!A81","v":177},{"$f":"QUESTIONS!H81","v":0},null,2,3]
[1,100,1,1,1,1,null,null,null,82,{"$f":"QUESTIONS!A82","v":1991},{"$f":"QUESTIONS!H82","v":"Titre"},null,"Titre","Titre"]
[null,null,null,null,null,null,null,null,null,83,{"$f":"QUESTIONS!A83","v":752},{"$f":"QUESTIONS!H83","v":0},null,2,4]
[null,null,null,null,null,null,null,null,null,84,{"$f":"QUESTIONS!A84","v":753},{"$f":"QUESTIONS!H84","v":0},null,2,4]
[null,null,null,null,null,null,null,null,null,85,{"$f":"QUESTIONS!A85","v":696},{"$f":"QUESTIONS!H85","v":0},null,2,4]
[null,null,null,null,null,null,null,null,null,86,{"$f":"QUESTIONS!A86","v":121},{"$f":"QUESTIONS!H86","v":0},null,2,3]
[null,"OR",36,null,null,null,null,null,null,87,{"$f":"QUESTIONS!A87","v":127},{"$f":"QUESTIONS!H87","v":0},null,2,4]
[null,"ARGENT",22,null,null,null,null,null,null,88,{"$f":"QUESTIONS!A88","v":1997},{"$f":"QUESTIONS!H88","v":"Titre"},null,"Titre","Titre"]
[null,"BRONZE",1,null,null,null,null,null,null,89,{"$f":"QUESTIONS!A89","v":662},{"$f":"QUESTIONS!H89","v":0},null,2,4]
[null,"TOTAL",59,null,null,null,null,null,null,"FIN","FIN","FIN","FIN","FIN","FIN"]
[null,"Date","8/30/2017"]
[null,"Date2"," 2017-08-30"]